{"text_format":"1","workbook":"xlsx","n_sheets":15,"sheets":["README","Tapestry (autodraw)","Tapestry (U-fill)","Harrow Spell (autodraw)","Harrow Spell (U-fill)","Bridge (autodraw)","Bridge (U-fill)","Cross (autodraw)","Cross (U-fill)","Sword (autodraw)","Sword (U-fill)","Path (autodraw)","Cards","Data","Draw"],"not_rendered":{"charts":0,"images":0,"macros":1,"external_links":0,"defined_names":19,"comments":0,"pivot_tables":0},"unopened":[],"bounds":{"document_bytes":16777216,"sheet_cells":100000,"rows_first":2000,"rows_last":500,"rows_between":2000,"halvings":0,"cell_chars":16384,"cell_head_chars":4096},"cells_cut":0,"cells_raw":0,"read":"whole","date_system":"1900"}

{"sheet":"README","index":0,"n_rows":17,"n_cols":3,"rows_kept":17,"cut":false,"hidden":false,"merged":[[9,1,9,5],[11,1,11,5],[12,1,12,5],[14,1,14,5],[1,1,1,5],[3,2,3,5],[5,2,5,5],[7,1,7,5]]}
[]
[null,"This spreadsheet is designed as aid for those using the Harrow Deck in their Pathfinder® games. It functions in one of two modes, depending on which tab of the spreadsheet you select:"]
[]
[null,null,"Autodraw. Automatically deal cards into the chosen spread and print the interpretations of each, along with automatic indication of misaligned cards, and for the traditional Harrow reading (The Tapestry), highlighting of True Matches, Partial Matches, and Opposed Matches. This is useful for GM's or players who want a quick reading with no fuss."]
[]
[null,null,"U-fill. You enter the card names into the slots of the chosen spread in order to obtain the card interpretations per #1. This mode provides a quick and easy interpretation reference for a reading made from a physical deck, eliminating the need to flip back and forth between pages in the Harrow Deck rule book."]
[]
[null,"Tabs are provided for the traditional Harrow Deck reading (The Tapestry), as well as for the alternate spreads listed in the Pathdinfer Player Companion: The Harrow Handbook (The Bridge, The Cross, The Path and The Sword)."]
[]
[null,"Note: This spreadsheet makes use of one macro to support the Path spread. If you disable macros, the rest of the spreadsheet will function, you will just not be able to change the cards dealt into The Path."]
[]
[null,"© 2017 John Mechalas"]
[null,"http://dungeonetics.com/"]
[]
[null,"This spreadsheet uses trademarks and/or copyrights owned by Paizo Inc., which are used under Paizo's Community Use Policy. We are expressly prohibited from charging you to use or access this content. This spreadsheet is not published, endorsed, or specifically approved by Paizo Inc. For more information about Paizo's Community Use Policy, please visit paizo.com/communityuse. For more information about Paizo Inc. and Paizo products, please visit paizo.com."]
[null,null,"paizo.com"]
[null,null,"paizo.com/communityuse"]

{"sheet":"Tapestry (autodraw)","index":1,"n_rows":15,"n_cols":17,"rows_kept":15,"cut":false,"hidden":false,"merged":[[3,10,3,12],[2,10,2,12],[7,6,7,8],[6,5,9,5],[4,10,4,12],[4,6,4,8],[9,10,9,12],[4,1,4,3],[2,1,2,3],[1,1,1,2],[3,1,3,3],[9,14,9,16],[7,14,7,16],[2,14,2,16],[3,14,3,16],[4,14,4,16],[8,14,8,16],[1,5,4,5],[2,6,2,8],[8,6,8,8],[8,10,8,12],[3,6,3,8],[7,10,7,12],[0,10,0,12],[0,6,0,8],[0,1,0,3],[0,14,0,16],[14,6,14,8],[13,6,13,8],[12,10,12,12],[13,10,13,12],[13,14,13,16],[14,14,14,16],[9,6,9,8],[12,14,12,16],[11,5,14,5],[12,6,12,8],[14,10,14,12],[6,1,11,3]]}
[null,"Choosing",null,null,null,null,"Past",null,null,null,"Present",null,null,null,"Future"]
[null,null,null,{"$f":"IFERROR(IF(ISBLANK(B2),\"\",VLOOKUP(B3,Cards,4,FALSE)),\"\")","v":""},null,"Positive",{"$f":"IFERROR(LEFT(VLOOKUP(G3,Cards!$B$2:$G$55,3,FALSE),3),\"\")","v":""},null,{"$f":"IFERROR(VLOOKUP(G3,Cards,4,FALSE),\"\")","v":""},null,{"$f":"IFERROR(LEFT(VLOOKUP(K3,Cards!$B$2:$G$55,3,FALSE),3),\"\")","v":""},null,{"$f":"IFERROR(VLOOKUP(K3,Cards,4,FALSE),\"\")","v":""},null,{"$f":"IFERROR(LEFT(VLOOKUP(O3,Cards!$B$2:$G$55,3,FALSE),3),\"\")","v":""},null,{"$f":"IFERROR(VLOOKUP(O3,Cards,4,FALSE),\"\")","v":""}]
[null,{"$f":"IFERROR(VLOOKUP(B2&\"-\"&RANDBETWEEN(1,9),cardattrindex,2),\"\")","v":""},null,null,null,null,{"$f":"IF(ISBLANK($B$2),\"\",Draw!K2)","v":""},null,null,null,{"$f":"IF(ISBLANK($B$2),\"\",Draw!K3)","v":""},null,null,null,{"$f":"IF(ISBLANK($B$2),\"\",Draw!K4)","v":""}]
[null,{"$f":"IFERROR(VLOOKUP(B3,Cards,5,FALSE),\"\")","v":""},null,null,null,null,{"$f":"IFERROR(VLOOKUP(G3,Cards,5,FALSE),\"\")","v":""},null,null,null,{"$f":"IFERROR(VLOOKUP(K3,Cards,5,FALSE),\"\")","v":""},null,null,null,{"$f":"IFERROR(VLOOKUP(O3,Cards,5,FALSE),\"\")","v":""}]
[null,null,null,null,null,null,{"$f":"IFERROR(IF(RIGHT(I2,1)=\"E\",VLOOKUP(G3,Cards,6,FALSE),\"\"),\"\")","v":""},null,null,null,{"$f":"IFERROR(IF(RIGHT(M2,1)=\"E\",VLOOKUP(K3,Cards,6,FALSE),\"\"),\"\")","v":""},null,null,null,{"$f":"IFERROR(IF(RIGHT(Q2,1)=\"E\",VLOOKUP(O3,Cards,6,FALSE),\"\"),\"\")","v":""}]
[]
[null,"Instructions\n\nPerform the choosing by selecting an attribute in the \"Choosing\" box, using the grey drop-down menu to select one of Strength, Intelligence, etc. The spreadsheet will draw a card for the choosing, and then draw nine cards for the Tapestry. (Note that the card for the Choosing can also appear in the Tapestry.) To re-deal, press F9.\n\nTrue matches are highlighted in blue, partial matches in yellow, and opposed matches in red (this palette is colorblind safe for users with red-green colorblindness). If a card is misaligned, the misaligned meaning is displayed in the lower box.",null,null,null,"Unclear",{"$f":"IFERROR(LEFT(VLOOKUP(G8,Cards!$B$2:$G$55,3,FALSE),3),\"\")","v":""},null,{"$f":"IFERROR(VLOOKUP(G8,Cards,4,FALSE),\"\")","v":""},null,{"$f":"IFERROR(LEFT(VLOOKUP(K8,Cards!$B$2:$G$55,3,FALSE),3),\"\")","v":""},null,{"$f":"IFERROR(VLOOKUP(K8,Cards,4,FALSE),\"\")","v":""},null,{"$f":"IFERROR(LEFT(VLOOKUP(O8,Cards!$B$2:$G$55,3,FALSE),3),\"\")","v":""},null,{"$f":"IFERROR(VLOOKUP(O8,Cards,4,FALSE),\"\")","v":""}]
[null,null,null,null,null,null,{"$f":"IF(ISBLANK($B$2),\"\",Draw!K5)","v":""},null,null,null,{"$f":"IF(ISBLANK($B$2),\"\",Draw!K6)","v":""},null,null,null,{"$f":"IF(ISBLANK($B$2),\"\",Draw!K7)","v":""}]
[null,null,null,null,null,null,{"$f":"IFERROR(VLOOKUP(G8,Cards,5,FALSE),\"\")","v":""},null,null,null,{"$f":"IFERROR(VLOOKUP(K8,Cards,5,FALSE),\"\")","v":""},null,null,null,{"$f":"IFERROR(VLOOKUP(O8,Cards,5,FALSE),\"\")","v":""}]
[]
[]
[null,null,null,null,null,"Negative",{"$f":"IFERROR(LEFT(VLOOKUP(G13,Cards!$B$2:$G$55,3,FALSE),3),\"\")","v":""},null,{"$f":"IFERROR(VLOOKUP(G13,Cards,4,FALSE),\"\")","v":""},null,{"$f":"IFERROR(LEFT(VLOOKUP(K13,Cards!$B$2:$G$55,3,FALSE),3),\"\")","v":""},null,{"$f":"IFERROR(VLOOKUP(K13,Cards,4,FALSE),\"\")","v":""},null,{"$f":"IFERROR(LEFT(VLOOKUP(O13,Cards!$B$2:$G$55,3,FALSE),3),\"\")","v":""},null,{"$f":"IFERROR(VLOOKUP(O13,Cards,4,FALSE),\"\")","v":""}]
[null,null,null,null,null,null,{"$f":"IF(ISBLANK($B$2),\"\",Draw!K8)","v":""},null,null,null,{"$f":"IF(ISBLANK($B$2),\"\",Draw!K9)","v":""},null,null,null,{"$f":"IF(ISBLANK($B$2),\"\",Draw!K10)","v":""}]
[null,null,null,null,null,null,{"$f":"IFERROR(VLOOKUP(G13,Cards,5,FALSE),\"\")","v":""},null,null,null,{"$f":"IFERROR(VLOOKUP(K13,Cards,5,FALSE),\"\")","v":""},null,null,null,{"$f":"IFERROR(VLOOKUP(O13,Cards,5,FALSE),\"\")","v":""}]
[null,null,null,null,null,null,{"$f":"IFERROR(IF(RIGHT(I12,1)=\"G\",VLOOKUP(G13,Cards,6,FALSE),\"\"),\"\")","v":""},null,null,null,{"$f":"IFERROR(IF(RIGHT(M12,1)=\"G\",VLOOKUP(K13,Cards,6,FALSE),\"\"),\"\")","v":""},null,null,null,{"$f":"IFERROR(IF(RIGHT(Q12,1)=\"G\",VLOOKUP(O13,Cards,6,FALSE),\"\"),\"\")","v":""}]

{"sheet":"Tapestry (U-fill)","index":2,"n_rows":15,"n_cols":17,"rows_kept":15,"cut":false,"hidden":false,"merged":[[5,1,5,3],[6,1,6,2],[7,1,7,3],[8,1,8,3],[9,1,9,3],[1,1,3,3],[8,14,8,16],[9,14,9,16],[7,14,7,16],[14,14,14,16],[13,6,13,8],[14,6,14,8],[12,6,12,8],[13,14,13,16],[12,14,12,16],[0,10,0,12],[0,6,0,8],[0,14,0,16],[14,10,14,12],[13,10,13,12],[3,14,3,16],[2,14,2,16],[3,10,3,12],[2,10,2,12],[3,6,3,8],[2,6,2,8],[8,6,8,8],[9,6,9,8],[7,10,7,12],[4,10,4,12],[4,14,4,16],[1,5,4,5],[6,5,9,5],[12,10,12,12],[7,6,7,8],[4,6,4,8],[8,10,8,12],[9,10,9,12],[11,5,14,5]]}
[null,null,null,null,null,null,"Past",null,null,null,"Present",null,null,null,"Future"]
[null,"Instructions\n\nEnter each card in the tapestry by selecting it via the gray drop-down box. True matches are highlighted in blue, partial matches in yellow, and opposed matches in red. If a card has a misaligned placement, the misaligned meaning is displayed in the lower box.\n\nNote that the spreadsheet does not try to detect if a card is in the spread in two places.",null,null,null,"Positive",{"$f":"IFERROR(LEFT(VLOOKUP(G3,Cards,3,FALSE),3),\"\")","v":""},null,{"$f":"IFERROR(VLOOKUP(G3,Cards,4,FALSE),\"\")","v":""},null,{"$f":"IFERROR(LEFT(VLOOKUP(K3,Cards,3,FALSE),3),\"\")","v":""},null,{"$f":"IFERROR(VLOOKUP(K3,Cards,4,FALSE),\"\")","v":""},null,{"$f":"IFERROR(LEFT(VLOOKUP(O3,Cards,3,FALSE),3),\"\")","v":""},null,{"$f":"IFERROR(VLOOKUP(O3,Cards,4,FALSE),\"\")","v":""}]
[]
[null,null,null,null,null,null,{"$f":"IFERROR(VLOOKUP(G3,Cards,5,FALSE),\"\")","v":""},null,null,null,{"$f":"IFERROR(VLOOKUP(K3,Cards,5,FALSE),\"\")","v":""},null,null,null,{"$f":"IFERROR(VLOOKUP(O3,Cards,5,FALSE),\"\")","v":""}]
[null,null,null,null,null,null,{"$f":"IFERROR(IF(RIGHT(I2,1)=\"E\",VLOOKUP(G3,Cards,6,FALSE),\"\"),\"\")","v":""},null,null,null,{"$f":"IFERROR(IF(RIGHT(M2,1)=\"E\",VLOOKUP(K3,Cards,6,FALSE),\"\"),\"\")","v":""},null,null,null,{"$f":"IFERROR(IF(RIGHT(Q2,1)=\"E\",VLOOKUP(O3,Cards,6,FALSE),\"\"),\"\")","v":""}]
[null,"Choosing (Optional)"]
[null,null,null,{"$f":"IFERROR(IF(ISBLANK(B7),\"\",VLOOKUP(B8,Cards,4,FALSE)),\"\")","v":""},null,"Unclear",{"$f":"IFERROR(LEFT(VLOOKUP(G8,Cards,3,FALSE),3),\"\")","v":""},null,{"$f":"IFERROR(VLOOKUP(G8,Cards,4,FALSE),\"\")","v":""},null,{"$f":"IFERROR(LEFT(VLOOKUP(K8,Cards,3,FALSE),3),\"\")","v":""},null,{"$f":"IFERROR(VLOOKUP(K8,Cards,4,FALSE),\"\")","v":""},null,{"$f":"IFERROR(LEFT(VLOOKUP(O8,Cards,3,FALSE),3),\"\")","v":""},null,{"$f":"IFERROR(VLOOKUP(O8,Cards,4,FALSE),\"\")","v":""}]
[]
[null,{"$f":"IFERROR(VLOOKUP(B8,Cards,5,FALSE),\"\")","v":""},null,null,null,null,{"$f":"IFERROR(VLOOKUP(G8,Cards,5,FALSE),\"\")","v":""},null,null,null,{"$f":"IFERROR(VLOOKUP(K8,Cards,5,FALSE),\"\")","v":""},null,null,null,{"$f":"IFERROR(VLOOKUP(O8,Cards,5,FALSE),\"\")","v":""}]
[]
[]
[null,null,null,null,null,"Negative",{"$f":"IFERROR(LEFT(VLOOKUP(G13,Cards,3,FALSE),3),\"\")","v":""},null,{"$f":"IFERROR(VLOOKUP(G13,Cards,4,FALSE),\"\")","v":""},null,{"$f":"IFERROR(LEFT(VLOOKUP(K13,Cards,3,FALSE),3),\"\")","v":""},null,{"$f":"IFERROR(VLOOKUP(K13,Cards,4,FALSE),\"\")","v":""},null,{"$f":"IFERROR(LEFT(VLOOKUP(O13,Cards,3,FALSE),3),\"\")","v":""},null,{"$f":"IFERROR(VLOOKUP(O13,Cards,4,FALSE),\"\")","v":""}]
[]
[null,null,null,null,null,null,{"$f":"IFERROR(VLOOKUP(G13,Cards,5,FALSE),\"\")","v":""},null,null,null,{"$f":"IFERROR(VLOOKUP(K13,Cards,5,FALSE),\"\")","v":""},null,null,null,{"$f":"IFERROR(VLOOKUP(O13,Cards,5,FALSE),\"\")","v":""}]
[null,null,null,null,null,null,{"$f":"IFERROR(IF(RIGHT(I12,1)=\"G\",VLOOKUP(G13,Cards,6,FALSE),\"\"),\"\")","v":""},null,null,null,{"$f":"IFERROR(IF(RIGHT(M12,1)=\"G\",VLOOKUP(K13,Cards,6,FALSE),\"\"),\"\")","v":""},null,null,null,{"$f":"IFERROR(IF(RIGHT(Q12,1)=\"G\",VLOOKUP(O13,Cards,6,FALSE),\"\"),\"\")","v":""}]

{"sheet":"Harrow Spell (autodraw)","index":3,"n_rows":22,"n_cols":17,"rows_kept":22,"cut":false,"hidden":false,"merged":[[20,10,20,12],[9,15,9,16],[10,1,10,3],[1,1,1,3],[9,1,9,3],[7,6,8,8],[7,10,8,12],[3,1,3,3],[4,1,4,3],[3,6,6,8],[3,10,6,12],[9,7,9,8],[9,11,9,12],[12,1,12,3],[13,1,13,3],[14,1,14,3],[11,1,11,2],[15,1,15,3],[11,5,14,5],[12,6,12,8],[12,10,12,12],[12,14,12,16],[13,6,13,8],[13,10,13,12],[13,14,13,16],[14,6,14,8],[14,10,14,12],[14,14,14,16],[0,1,0,3],[0,6,0,8],[0,10,0,12],[0,14,0,16],[1,5,8,5],[2,6,2,8],[2,10,2,12],[2,14,2,16],[3,14,6,16],[7,14,8,16],[6,1,8,3],[16,1,21,3],[15,7,15,8],[15,11,15,12],[15,15,15,16],[21,7,21,8],[21,11,21,12],[21,15,21,16],[20,14,20,16],[17,5,20,5],[18,6,18,8],[18,10,18,12],[18,14,18,16],[19,6,19,8],[19,10,19,12],[19,14,19,16],[20,6,20,8]]}
[null,"Alignment",null,null,null,null,"Past",null,null,null,"Present",null,null,null,"Future"]
[null,null,null,null,null,"Positive",{"$f":"IFERROR(LEFT(VLOOKUP(G3,Cards!$B$2:$G$55,3,FALSE),3),\"\")","v":""},null,{"$f":"IFERROR(VLOOKUP(G3,Cards,4,FALSE),\"\")","v":""},null,{"$f":"IFERROR(LEFT(VLOOKUP(K3,Cards!$B$2:$G$55,3,FALSE),3),\"\")","v":""},null,{"$f":"IFERROR(VLOOKUP(K3,Cards,4,FALSE),\"\")","v":""},null,{"$f":"IFERROR(LEFT(VLOOKUP(O3,Cards!$B$2:$G$55,3,FALSE),3),\"\")","v":""},null,{"$f":"IFERROR(VLOOKUP(O3,Cards,4,FALSE),\"\")","v":""}]
[null,null,{"$f":"IF(B2=\"N\",\"<-- Choose one of CE,LE,CG,LG\",\"\")","v":""},null,null,null,{"$f":"IF(LEN(opposite)=0,\"\",Draw!K2)","v":""},null,null,null,{"$f":"IF(LEN(opposite)=0,\"\",Draw!K3)","v":""},null,null,null,{"$f":"IF(LEN(opposite)=0,\"\",Draw!K4)","v":""}]
[null,{"$f":"IF(alignment=\"\",\"\",IF(alignment=\"N\",IF(LEN(override)=2,override,\"\"),IF(LEFT(alignment,1)=\"L\",\"C\",IF(LEFT(alignment,1)=\"C\",\"L\",\"N\"))&IF(RIGHT(alignment,1)=\"G\",\"E\",IF(RIGHT(alignment,1)=\"E\",\"G\",\"N\"))))","v":""},null,null,null,null,{"$f":"IFERROR(VLOOKUP(G3,Cards,5,FALSE),\"\")","v":""},null,null,null,{"$f":"IFERROR(VLOOKUP(K3,Cards,5,FALSE),\"\")","v":""},null,null,null,{"$f":"IFERROR(VLOOKUP(O3,Cards,5,FALSE),\"\")","v":""}]
[null,"Opposite"]
[]
[null,"Instructions\n\nEnter the target's alignment in the box. If their alignment is N, choose one of the extremes to their opposite alignment for the purposes of the spell. Cards will be dealt automatically so you can determine the target's bonuses and penalties."]
[null,null,null,null,null,null,{"$f":"IFERROR(IF(RIGHT(I2,1)=\"E\",VLOOKUP(G3,Cards,6,FALSE),\"\"),\"\")","v":""},null,null,null,{"$f":"IFERROR(IF(RIGHT(M2,1)=\"E\",VLOOKUP(K3,Cards,6,FALSE),\"\"),\"\")","v":""},null,null,null,{"$f":"IFERROR(IF(RIGHT(Q2,1)=\"E\",VLOOKUP(O3,Cards,6,FALSE),\"\"),\"\")","v":""}]
[]
[null,null,null,null,null,null,{"$f":"IF(LEN(opposite)=0,\"\",IF(I2=alignment,2,IF(I2=opposite,-1,1)))","v":""},{"$f":"IF(LEN(opposite)=0,\"\",VLOOKUP(G2,Data!$C$2:$D$7,2,FALSE))","v":""},null,null,{"$f":"IF(LEN(opposite)=0,\"\",IF(M2=alignment,2,IF(M2=opposite,-1,1)))","v":""},{"$f":"IF(LEN(opposite)=0,\"\",VLOOKUP(K2,Data!$C$2:$D$7,2,FALSE))","v":""},null,null,{"$f":"IF(LEN(opposite)=0,\"\",IF(Q2=alignment,2,IF(Q2=opposite,-1,1)))","v":""},{"$f":"IF(LEN(opposite)=0,\"\",VLOOKUP(O2,Data!$C$2:$D$7,2,FALSE))","v":""}]
[null,"Choosing (Optional)"]
[null,null,null,{"$f":"IFERROR(IF(ISBLANK(B12),\"\",VLOOKUP(B13,Cards,4,FALSE)),\"\")","v":""},null,"Unclear",{"$f":"IFERROR(LEFT(VLOOKUP(G13,Cards!$B$2:$G$55,3,FALSE),3),\"\")","v":""},null,{"$f":"IFERROR(VLOOKUP(G13,Cards,4,FALSE),\"\")","v":""},null,{"$f":"IFERROR(LEFT(VLOOKUP(K13,Cards!$B$2:$G$55,3,FALSE),3),\"\")","v":""},null,{"$f":"IFERROR(VLOOKUP(K13,Cards,4,FALSE),\"\")","v":""},null,{"$f":"IFERROR(LEFT(VLOOKUP(O13,Cards!$B$2:$G$55,3,FALSE),3),\"\")","v":""},null,{"$f":"IFERROR(VLOOKUP(O13,Cards,4,FALSE),\"\")","v":""}]
[null,{"$f":"IFERROR(VLOOKUP(B12&\"-\"&RANDBETWEEN(1,9),cardattrindex,2),\"\")","v":""},null,null,null,null,{"$f":"IF(LEN(opposite)=0,\"\",Draw!K5)","v":""},null,null,null,{"$f":"IF(LEN(opposite)=0,\"\",Draw!K6)","v":""},null,null,null,{"$f":"IF(LEN(opposite)=0,\"\",Draw!K7)","v":""}]
[null,{"$f":"IFERROR(VLOOKUP(B13,Cards,5,FALSE),\"\")","v":""},null,null,null,null,{"$f":"IFERROR(VLOOKUP(G13,Cards,5,FALSE),\"\")","v":""},null,null,null,{"$f":"IFERROR(VLOOKUP(K13,Cards,5,FALSE),\"\")","v":""},null,null,null,{"$f":"IFERROR(VLOOKUP(O13,Cards,5,FALSE),\"\")","v":""}]
[]
[null,null,null,null,null,null,{"$f":"IF(LEN(opposite)=0,\"\",IF(I12=alignment,2,IF(I12=opposite,-1,1)))","v":""},{"$f":"IF(LEN(opposite)=0,\"\",VLOOKUP(G12,Data!$C$2:$D$7,2,FALSE))","v":""},null,null,{"$f":"IF(LEN(opposite)=0,\"\",IF(M12=alignment,2,IF(M12=opposite,-1,1)))","v":""},{"$f":"IF(LEN(opposite)=0,\"\",VLOOKUP(K12,Data!$C$2:$D$7,2,FALSE))","v":""},null,null,{"$f":"IF(LEN(opposite)=0,\"\",IF(Q12=alignment,2,IF(Q12=opposite,-1,1)))","v":""},{"$f":"IF(LEN(opposite)=0,\"\",VLOOKUP(O12,Data!$C$2:$D$7,2,FALSE))","v":""}]
[null,"You can optionally do a Tapesty reading from these cards as well. The appropriate true, partial, and opposite matches are designated with blue, yellow, and red shading, respectively.\n\nCards that are misalgined show the misaligned meaning."]
[null,null,null,null,null,"Negative",{"$f":"IFERROR(LEFT(VLOOKUP(G19,Cards!$B$2:$G$55,3,FALSE),3),\"\")","v":""},null,{"$f":"IFERROR(VLOOKUP(G19,Cards,4,FALSE),\"\")","v":""},null,{"$f":"IFERROR(LEFT(VLOOKUP(K19,Cards!$B$2:$G$55,3,FALSE),3),\"\")","v":""},null,{"$f":"IFERROR(VLOOKUP(K19,Cards,4,FALSE),\"\")","v":""},null,{"$f":"IFERROR(LEFT(VLOOKUP(O19,Cards!$B$2:$G$55,3,FALSE),3),\"\")","v":""},null,{"$f":"IFERROR(VLOOKUP(O19,Cards,4,FALSE),\"\")","v":""}]
[null,null,null,null,null,null,{"$f":"IF(LEN(opposite)=0,\"\",Draw!K8)","v":""},null,null,null,{"$f":"IF(LEN(opposite)=0,\"\",Draw!K9)","v":""},null,null,null,{"$f":"IF(LEN(opposite)=0,\"\",Draw!K10)","v":""}]
[null,null,null,null,null,null,{"$f":"IFERROR(VLOOKUP(G19,Cards,5,FALSE),\"\")","v":""},null,null,null,{"$f":"IFERROR(VLOOKUP(K19,Cards,5,FALSE),\"\")","v":""},null,null,null,{"$f":"IFERROR(VLOOKUP(O19,Cards,5,FALSE),\"\")","v":""}]
[null,null,null,null,null,null,{"$f":"IFERROR(IF(RIGHT(I18,1)=\"G\",VLOOKUP(G19,Cards,6,FALSE),\"\"),\"\")","v":""},null,null,null,{"$f":"IFERROR(IF(RIGHT(M18,1)=\"G\",VLOOKUP(K19,Cards,6,FALSE),\"\"),\"\")","v":""},null,null,null,{"$f":"IFERROR(IF(RIGHT(Q18,1)=\"G\",VLOOKUP(O19,Cards,6,FALSE),\"\"),\"\")","v":""}]
[null,null,null,null,null,null,{"$f":"IF(LEN(opposite)=0,\"\",IF(I18=alignment,2,IF(I18=opposite,-1,1)))","v":""},{"$f":"IF(LEN(opposite)=0,\"\",VLOOKUP(G18,Data!$C$2:$D$7,2,FALSE))","v":""},null,null,{"$f":"IF(LEN(opposite)=0,\"\",IF(M18=alignment,2,IF(M18=opposite,-1,1)))","v":""},{"$f":"IF(LEN(opposite)=0,\"\",VLOOKUP(K18,Data!$C$2:$D$7,2,FALSE))","v":""},null,null,{"$f":"IF(LEN(opposite)=0,\"\",IF(Q18=alignment,2,IF(Q18=opposite,-1,1)))","v":""},{"$f":"IF(LEN(opposite)=0,\"\",VLOOKUP(O18,Data!$C$2:$D$7,2,FALSE))","v":""}]

{"sheet":"Harrow Spell (U-fill)","index":4,"n_rows":22,"n_cols":17,"rows_kept":22,"cut":false,"hidden":false,"merged":[[21,11,21,12],[21,15,21,16],[15,1,15,3],[15,7,15,8],[15,11,15,12],[15,15,15,16],[17,5,20,5],[18,6,18,8],[18,10,18,12],[18,14,18,16],[19,6,19,8],[19,10,19,12],[16,1,21,3],[19,14,19,16],[20,6,20,8],[20,10,20,12],[20,14,20,16],[21,7,21,8],[14,14,14,16],[9,1,9,3],[9,7,9,8],[9,11,9,12],[9,15,9,16],[10,1,10,3],[11,1,11,2],[11,5,14,5],[12,1,12,3],[12,6,12,8],[12,10,12,12],[12,14,12,16],[13,1,13,3],[13,6,13,8],[13,10,13,12],[13,14,13,16],[4,1,4,3],[6,1,8,3],[14,1,14,3],[14,6,14,8],[14,10,14,12],[7,6,8,8],[7,10,8,12],[7,14,8,16],[0,1,0,3],[0,6,0,8],[0,10,0,12],[0,14,0,16],[1,1,1,3],[1,5,8,5],[2,6,2,8],[2,10,2,12],[2,14,2,16],[3,1,3,3],[3,6,6,8],[3,10,6,12],[3,14,6,16]]}
[null,"Alignment",null,null,null,null,"Past",null,null,null,"Present",null,null,null,"Future"]
[null,null,null,null,null,"Positive",{"$f":"IFERROR(LEFT(VLOOKUP(G3,Cards!$B$2:$G$55,3,FALSE),3),\"\")","v":""},null,{"$f":"IFERROR(VLOOKUP(G3,Cards,4,FALSE),\"\")","v":""},null,{"$f":"IFERROR(LEFT(VLOOKUP(K3,Cards!$B$2:$G$55,3,FALSE),3),\"\")","v":""},null,{"$f":"IFERROR(VLOOKUP(K3,Cards,4,FALSE),\"\")","v":""},null,{"$f":"IFERROR(LEFT(VLOOKUP(O3,Cards!$B$2:$G$55,3,FALSE),3),\"\")","v":""},null,{"$f":"IFERROR(VLOOKUP(O3,Cards,4,FALSE),\"\")","v":""}]
[null,null,{"$f":"IF(B2=\"N\",\"<-- Choose one of CE,LE,CG,LG\",\"\")","v":""}]
[null,{"$f":"IF(alignment=\"\",\"\",IF(alignment=\"N\",IF(LEN(override)=2,override,\"\"),IF(LEFT(alignment,1)=\"L\",\"C\",IF(LEFT(alignment,1)=\"C\",\"L\",\"N\"))&IF(RIGHT(alignment,1)=\"G\",\"E\",IF(RIGHT(alignment,1)=\"E\",\"G\",\"N\"))))","v":""},null,null,null,null,{"$f":"IFERROR(VLOOKUP(G3,Cards,5,FALSE),\"\")","v":""},null,null,null,{"$f":"IFERROR(VLOOKUP(K3,Cards,5,FALSE),\"\")","v":""},null,null,null,{"$f":"IFERROR(VLOOKUP(O3,Cards,5,FALSE),\"\")","v":""}]
[null,"Opposite"]
[]
[null,"Instructions\n\nEnter the target's alignment in the box. If their alignment is N, choose one of the extremes to their opposite alignment for the purposes of the spell. Then enter the cards in each of the card boxes, to obtain the target's bonuses and penalties."]
[null,null,null,null,null,null,{"$f":"IFERROR(IF(RIGHT(I2,1)=\"E\",VLOOKUP(G3,Cards,6,FALSE),\"\"),\"\")","v":""},null,null,null,{"$f":"IFERROR(IF(RIGHT(M2,1)=\"E\",VLOOKUP(K3,Cards,6,FALSE),\"\"),\"\")","v":""},null,null,null,{"$f":"IFERROR(IF(RIGHT(Q2,1)=\"E\",VLOOKUP(O3,Cards,6,FALSE),\"\"),\"\")","v":""}]
[]
[null,null,null,null,null,null,{"$f":"IF(OR(LEN(opposite)=0,LEN(G3)=0),\"\",IF(I2=alignment,2,IF(I2=opposite,-1,1)))","v":""},{"$f":"IF(OR(LEN(opposite)=0,LEN(G3)=0),\"\",VLOOKUP(G2,Data!$C$2:$D$7,2,FALSE))","v":""},null,null,{"$f":"IF(OR(LEN(opposite)=0,LEN(K3)=0),\"\",IF(M2=alignment,2,IF(M2=opposite,-1,1)))","v":""},{"$f":"IF(OR(LEN(opposite)=0,LEN(K3)=0),\"\",VLOOKUP(K2,Data!$C$2:$D$7,2,FALSE))","v":""},null,null,{"$f":"IF(OR(LEN(opposite)=0,LEN(O3)=0),\"\",IF(Q2=alignment,2,IF(Q2=opposite,-1,1)))","v":""},{"$f":"IF(OR(LEN(opposite)=0,LEN(O3)=0),\"\",VLOOKUP(O2,Data!$C$2:$D$7,2,FALSE))","v":""}]
[null,"Choosing (Optional)"]
[null,null,null,{"$f":"IFERROR(IF(ISBLANK(B12),\"\",VLOOKUP(B13,Cards,4,FALSE)),\"\")","v":""},null,"Unclear",{"$f":"IFERROR(LEFT(VLOOKUP(G13,Cards!$B$2:$G$55,3,FALSE),3),\"\")","v":""},null,{"$f":"IFERROR(VLOOKUP(G13,Cards,4,FALSE),\"\")","v":""},null,{"$f":"IFERROR(LEFT(VLOOKUP(K13,Cards!$B$2:$G$55,3,FALSE),3),\"\")","v":""},null,{"$f":"IFERROR(VLOOKUP(K13,Cards,4,FALSE),\"\")","v":""},null,{"$f":"IFERROR(LEFT(VLOOKUP(O13,Cards!$B$2:$G$55,3,FALSE),3),\"\")","v":""},null,{"$f":"IFERROR(VLOOKUP(O13,Cards,4,FALSE),\"\")","v":""}]
[]
[null,{"$f":"IFERROR(VLOOKUP(B13,Cards,5,FALSE),\"\")","v":""},null,null,null,null,{"$f":"IFERROR(VLOOKUP(G13,Cards,5,FALSE),\"\")","v":""},null,null,null,{"$f":"IFERROR(VLOOKUP(K13,Cards,5,FALSE),\"\")","v":""},null,null,null,{"$f":"IFERROR(VLOOKUP(O13,Cards,5,FALSE),\"\")","v":""}]
[]
[null,null,null,null,null,null,{"$f":"IF(OR(LEN(G13)=0,LEN(opposite)=0),\"\",IF(I12=alignment,2,IF(I12=opposite,-1,1)))","v":""},{"$f":"IF(OR(LEN(G13)=0,LEN(opposite)=0),\"\",VLOOKUP(G12,Data!$C$2:$D$7,2,FALSE))","v":""},null,null,{"$f":"IF(OR(LEN(K13)=0,LEN(opposite)=0),\"\",IF(M12=alignment,2,IF(M12=opposite,-1,1)))","v":""},{"$f":"IF(OR(LEN(K13)=0,LEN(opposite)=0),\"\",VLOOKUP(K12,Data!$C$2:$D$7,2,FALSE))","v":""},null,null,{"$f":"IF(OR(LEN(O13)=0,LEN(opposite)=0),\"\",IF(Q12=alignment,2,IF(Q12=opposite,-1,1)))","v":""},{"$f":"IF(OR(LEN(O13)=0,LEN(opposite)=0),\"\",VLOOKUP(O12,Data!$C$2:$D$7,2,FALSE))","v":""}]
[null,"You can optionally do a Tapesty reading from these cards as well. The appropriate true, partial, and opposite matches are designated with blue, yellow, and red shading, respectively.\n\nCards that are misalgined show the misaligned meaning."]
[null,null,null,null,null,"Negative",{"$f":"IFERROR(LEFT(VLOOKUP(G19,Cards!$B$2:$G$55,3,FALSE),3),\"\")","v":""},null,{"$f":"IFERROR(VLOOKUP(G19,Cards,4,FALSE),\"\")","v":""},null,{"$f":"IFERROR(LEFT(VLOOKUP(K19,Cards!$B$2:$G$55,3,FALSE),3),\"\")","v":""},null,{"$f":"IFERROR(VLOOKUP(K19,Cards,4,FALSE),\"\")","v":""},null,{"$f":"IFERROR(LEFT(VLOOKUP(O19,Cards!$B$2:$G$55,3,FALSE),3),\"\")","v":""},null,{"$f":"IFERROR(VLOOKUP(O19,Cards,4,FALSE),\"\")","v":""}]
[]
[null,null,null,null,null,null,{"$f":"IFERROR(VLOOKUP(G19,Cards,5,FALSE),\"\")","v":""},null,null,null,{"$f":"IFERROR(VLOOKUP(K19,Cards,5,FALSE),\"\")","v":""},null,null,null,{"$f":"IFERROR(VLOOKUP(O19,Cards,5,FALSE),\"\")","v":""}]
[null,null,null,null,null,null,{"$f":"IFERROR(IF(RIGHT(I18,1)=\"G\",VLOOKUP(G19,Cards,6,FALSE),\"\"),\"\")","v":""},null,null,null,{"$f":"IFERROR(IF(RIGHT(M18,1)=\"G\",VLOOKUP(K19,Cards,6,FALSE),\"\"),\"\")","v":""},null,null,null,{"$f":"IFERROR(IF(RIGHT(Q18,1)=\"G\",VLOOKUP(O19,Cards,6,FALSE),\"\"),\"\")","v":""}]
[null,null,null,null,null,null,{"$f":"IF(OR(LEN(G19)=0,LEN(opposite)=0),\"\",IF(I18=alignment,2,IF(I18=opposite,-1,1)))","v":""},{"$f":"IF(OR(LEN(G19)=0,LEN(opposite)=0),\"\",VLOOKUP(G18,Data!$C$2:$D$7,2,FALSE))","v":""},null,null,{"$f":"IF(OR(LEN(K19)=0,LEN(opposite)=0),\"\",IF(M18=alignment,2,IF(M18=opposite,-1,1)))","v":""},{"$f":"IF(OR(LEN(K19)=0,LEN(opposite)=0),\"\",VLOOKUP(K18,Data!$C$2:$D$7,2,FALSE))","v":""},null,null,{"$f":"IF(OR(LEN(O19)=0,LEN(opposite)=0),\"\",IF(Q18=alignment,2,IF(Q18=opposite,-1,1)))","v":""},{"$f":"IF(OR(LEN(O19)=0,LEN(opposite)=0),\"\",VLOOKUP(O18,Data!$C$2:$D$7,2,FALSE))","v":""}]

{"sheet":"Bridge (autodraw)","index":5,"n_rows":23,"n_cols":22,"rows_kept":23,"cut":false,"hidden":false,"merged":[[6,15,6,16],[6,11,6,12],[1,6,4,11],[22,18,23,20],[14,21,23,21],[10,6,15,8],[16,6,17,8],[10,14,15,16],[2,21,11,21],[10,18,11,20],[4,18,9,20],[2,18,3,20],[16,14,17,16],[16,18,21,20],[14,18,15,20],[8,14,9,16],[8,6,9,8],[8,10,9,12],[14,1,23,1],[2,1,11,1],[16,2,21,4],[14,2,15,4],[4,2,9,4],[10,2,11,4],[22,2,23,4],[2,2,3,4],[16,10,17,12],[6,7,6,8],[10,10,15,12]]}
[]
[null,2,{"$f":"IF(RANDBETWEEN(0,1)=1,\"X\",\"\")","v":""},"Reversed",{"$f":"IFERROR(VLOOKUP(C3,Cards,4,FALSE),\"\")","v":"CG"},null,"Instructions\n\nPress F9 to deal cards into the Bridge. Cards that are reversed are indicated with an X in the \"Reversed\" box (upper left). These cards are considered misaligned. If a card has a misaligned meaning, it is printed in the lower box.",null,null,null,null,null,null,null,null,null,null,null,{"$f":"IF(RANDBETWEEN(0,1)=1,\"X\",\"\")","v":""},"Reversed",{"$f":"IFERROR(VLOOKUP(S3,Cards,4,FALSE),\"\")","v":"LG"},7]
[null,"Impetus",{"$f":"VLOOKUP(B2,Draw!$I$2:$K$10,3,FALSE)","v":"Joke"},null,null,null,null,null,null,null,null,null,null,null,null,null,null,null,{"$f":"VLOOKUP(V2,Draw!$I$2:$K$10,3,FALSE)","v":"Trumpet"},null,null,"The Sacrifice"]
[]
[null,null,{"$f":"IFERROR(VLOOKUP(C3,Cards,5,FALSE),\"\")","v":"shows a terror that must be overcome—but not by physical means. This monster can only be defeated by trickery or artifice. This card can represent the value of humor in finding the way past a difficult person or task."},null,null,null,null,null,null,null,null,null,null,null,null,null,null,null,{"$f":"IFERROR(VLOOKUP(S3,Cards,5,FALSE),\"\")","v":"is a declaration of power. This archon is an aggressive force who wades into the direst situations without hesitation in the cause of right. It is a card that grants all or nothing at all."}]
[]
[null,null,null,null,null,null,3,"Trials and Tribulations",null,null,4,"Trials and Tribulations",null,null,5,"Trials and Tribulations"]
[null,null,null,null,null,null,{"$f":"IF(RANDBETWEEN(0,1)=1,\"X\",\"\")","v":"X"},"Reversed",{"$f":"IFERROR(VLOOKUP(G9,Cards,4,FALSE),\"\")","v":"CG"},null,{"$f":"IF(RANDBETWEEN(0,1)=1,\"X\",\"\")","v":""},"Reversed",{"$f":"IFERROR(VLOOKUP(K9,Cards,4,FALSE),\"\")","v":"NE"},null,{"$f":"IF(RANDBETWEEN(0,1)=1,\"X\",\"\")","v":""},"Reversed",{"$f":"IFERROR(VLOOKUP(O9,Cards,4,FALSE),\"\")","v":"LE"}]
[null,null,null,null,null,null,{"$f":"VLOOKUP(G7,Draw!$I$2:$K$10,3,FALSE)","v":"Desert"},null,null,null,{"$f":"VLOOKUP(K7,Draw!$I$2:$K$10,3,FALSE)","v":"Betrayal"},null,null,null,{"$f":"VLOOKUP(O7,Draw!$I$2:$K$10,3,FALSE)","v":"Eclipse"}]
[]
[null,null,{"$f":"IFERROR(IF(C2=\"\",\"\",IF(RIGHT(E2,1)=\"N\",\"\",VLOOKUP(C3,Cards,6,FALSE))),\"\")","v":""},null,null,null,{"$f":"IFERROR(VLOOKUP(G9,Cards,5,FALSE),\"\")","v":"is an environment so bleak that none can survive it without aid. For those who find that aid, the journey across the wastes can lead to great things. The sphinx on this card can refer to a mystic or doctor bringing salvation in times of plague or illness."},null,null,null,{"$f":"IFERROR(VLOOKUP(K9,Cards,5,FALSE),\"\")","v":"is selfishness incarnate. Envy twists the spirit and leads ultimately to devastation. It can also indicate a person whose loveliness hides an evil heart. "},null,null,null,{"$f":"IFERROR(VLOOKUP(O9,Cards,5,FALSE),\"\")","v":"represents self-doubt and loss of purpose. This card afflicts those with faith in the divine, as their talents can wane under this stress. It can also indicate a loss of way along a path. "},null,null,null,{"$f":"IFERROR(IF(S2=\"\",\"\",IF(RIGHT(U2,1)=\"N\",\"\",VLOOKUP(S3,Cards,6,FALSE))),\"\")","v":""}]
[]
[]
[null,1,{"$f":"IF(RANDBETWEEN(0,1)=1,\"X\",\"\")","v":"X"},"Reversed",{"$f":"IFERROR(VLOOKUP(C15,Cards,4,FALSE),\"\")","v":"N"},null,null,null,null,null,null,null,null,null,null,null,null,null,{"$f":"IF(RANDBETWEEN(0,1)=1,\"X\",\"\")","v":"X"},"Reversed",{"$f":"IFERROR(VLOOKUP(S15,Cards,4,FALSE),\"\")","v":"NE"},6]
[null,"Beginning",{"$f":"VLOOKUP(B14,Draw!$I$2:$K$10,3,FALSE)","v":"Bear"},null,null,null,null,null,null,null,null,null,null,null,null,null,null,null,{"$f":"VLOOKUP(V14,Draw!$I$2:$K$10,3,FALSE)","v":"Mute Hag"},null,null,"The Goal"]
[]
[null,null,{"$f":"IFERROR(VLOOKUP(C15,Cards,5,FALSE),\"\")","v":"is pure strength. People often make the mistake of thinking The Bear can be tamed or trained. When someone believes he has The Bear under control, that person eventually learns the error of his ways. Brute force might be required here, but the consequences of its use might be severe."},null,null,null,{"$f":"IFERROR(IF(G8=\"\",\"\",IF(RIGHT(I8,1)=\"N\",\"\",VLOOKUP(G9,Cards,6,FALSE))),\"\")","v":"Misaligned, it implies the subject cannot rely on the help of others and will assuredly be lost."},null,null,null,{"$f":"IFERROR(IF(K8=\"\",\"\",IF(RIGHT(M8,1)=\"N\",\"\",VLOOKUP(K9,Cards,6,FALSE))),\"\")","v":""},null,null,null,{"$f":"IFERROR(IF(O8=\"\",\"\",IF(RIGHT(Q8,1)=\"N\",\"\",VLOOKUP(O9,Cards,6,FALSE))),\"\")","v":""},null,null,null,{"$f":"IFERROR(VLOOKUP(S15,Cards,5,FALSE),\"\")","v":"might be silent, but the eye she holds lets her see into the hearts of men. This hag invokes blood pacts and poisonous secrets, the kind that turn brother against brother and son against father. It is a card that performers loathe, as it leaves them stumbling over their words and songs."}]
[]
[]
[]
[]
[]
[null,null,{"$f":"IFERROR(IF(C14=\"\",\"\",IF(RIGHT(E14,1)=\"N\",\"\",VLOOKUP(C15,Cards,6,FALSE))),\"\")","v":""},null,null,null,null,null,null,null,null,null,null,null,null,null,null,null,{"$f":"IFERROR(IF(S14=\"\",\"\",IF(RIGHT(U14,1)=\"N\",\"\",VLOOKUP(S15,Cards,6,FALSE))),\"\")","v":"Misaligned, it indicates unshakable loyalty and lucidity of speech."}]

{"sheet":"Bridge (U-fill)","index":6,"n_rows":23,"n_cols":22,"rows_kept":23,"cut":false,"hidden":false,"merged":[[14,21,23,21],[16,18,21,20],[22,18,23,20],[2,21,11,21],[8,10,9,12],[2,18,3,20],[4,18,9,20],[6,11,6,12],[6,15,6,16],[10,14,15,16],[10,10,15,12],[16,10,17,12],[14,18,15,20],[10,18,11,20],[8,14,9,16],[16,14,17,16],[14,1,23,1],[22,2,23,4],[4,2,9,4],[2,1,11,1],[8,6,9,8],[6,7,6,8],[2,2,3,4],[1,6,4,13],[10,2,11,4],[14,2,15,4],[16,2,21,4],[10,6,15,8],[16,6,17,8]]}
[]
[null,2,null,"Reversed",{"$f":"IFERROR(VLOOKUP(C3,Cards,4,FALSE),\"\")","v":""},null,"Instructions\n\nChoose a card for each position in the Bridge using the grey drop-down box. Then indicate whether or not that card is reversed (potentially misaligned) by placing an X in the \"Reversed\" box in the upper left. If a card has a misaligned placement, the misaligned meaning is printed in the lower box. The spreadsheet does not detect if the same card is entered more than once.",null,null,null,null,null,null,null,null,null,null,null,null,"Reversed",{"$f":"IFERROR(VLOOKUP(S3,Cards,4,FALSE),\"\")","v":""},7]
[null,"Impetus",null,null,null,null,null,null,null,null,null,null,null,null,null,null,null,null,null,null,null,"The Sacrifice"]
[]
[null,null,{"$f":"IFERROR(VLOOKUP(C3,Cards,5,FALSE),\"\")","v":""},null,null,null,null,null,null,null,null,null,null,null,null,null,null,null,{"$f":"IFERROR(VLOOKUP(S3,Cards,5,FALSE),\"\")","v":""}]
[]
[null,null,null,null,null,null,3,"Trials and Tribulations",null,null,4,"Trials and Tribulations",null,null,5,"Trials and Tribulations"]
[null,null,null,null,null,null,null,"Reversed",{"$f":"IFERROR(VLOOKUP(G9,Cards,4,FALSE),\"\")","v":""},null,null,"Reversed",{"$f":"IFERROR(VLOOKUP(K9,Cards,4,FALSE),\"\")","v":""},null,null,"Reversed",{"$f":"IFERROR(VLOOKUP(O9,Cards,4,FALSE),\"\")","v":""}]
[]
[]
[null,null,{"$f":"IFERROR(IF(C2=\"\",\"\",IF(RIGHT(E2,1)=\"N\",\"\",VLOOKUP(C3,Cards,6,FALSE))),\"\")","v":""},null,null,null,{"$f":"IFERROR(VLOOKUP(G9,Cards,5,FALSE),\"\")","v":""},null,null,null,{"$f":"IFERROR(VLOOKUP(K9,Cards,5,FALSE),\"\")","v":""},null,null,null,{"$f":"IFERROR(VLOOKUP(O9,Cards,5,FALSE),\"\")","v":""},null,null,null,{"$f":"IFERROR(IF(S2=\"\",\"\",IF(RIGHT(U2,1)=\"N\",\"\",VLOOKUP(S3,Cards,6,FALSE))),\"\")","v":""}]
[]
[]
[null,1,null,"Reversed",{"$f":"IFERROR(VLOOKUP(C15,Cards,4,FALSE),\"\")","v":""},null,null,null,null,null,null,null,null,null,null,null,null,null,null,"Reversed",{"$f":"IFERROR(VLOOKUP(S15,Cards,4,FALSE),\"\")","v":""},6]
[null,"Beginning",null,null,null,null,null,null,null,null,null,null,null,null,null,null,null,null,null,null,null,"The Goal"]
[]
[null,null,{"$f":"IFERROR(VLOOKUP(C15,Cards,5,FALSE),\"\")","v":""},null,null,null,{"$f":"IFERROR(IF(G8=\"\",\"\",IF(RIGHT(I8,1)=\"N\",\"\",VLOOKUP(G9,Cards,6,FALSE))),\"\")","v":""},null,null,null,{"$f":"IFERROR(IF(K8=\"\",\"\",IF(RIGHT(M8,1)=\"N\",\"\",VLOOKUP(K9,Cards,6,FALSE))),\"\")","v":""},null,null,null,{"$f":"IFERROR(IF(O8=\"\",\"\",IF(RIGHT(Q8,1)=\"N\",\"\",VLOOKUP(O9,Cards,6,FALSE))),\"\")","v":""},null,null,null,{"$f":"IFERROR(VLOOKUP(S15,Cards,5,FALSE),\"\")","v":""}]
[]
[]
[]
[]
[]
[null,null,{"$f":"IFERROR(IF(C14=\"\",\"\",IF(RIGHT(E14,1)=\"N\",\"\",VLOOKUP(C15,Cards,6,FALSE))),\"\")","v":""},null,null,null,null,null,null,null,null,null,null,null,null,null,null,null,{"$f":"IFERROR(IF(S14=\"\",\"\",IF(RIGHT(U14,1)=\"N\",\"\",VLOOKUP(S15,Cards,6,FALSE))),\"\")","v":""}]

{"sheet":"Cross (autodraw)","index":7,"n_rows":17,"n_cols":14,"rows_kept":17,"cut":false,"hidden":false,"merged":[[16,2,16,4],[15,2,15,4],[10,2,10,4],[9,2,9,4],[8,1,10,1],[12,1,15,1],[13,2,13,4],[14,2,14,4],[8,2,8,4],[1,13,4,13],[2,10,2,12],[9,6,9,8],[9,10,9,12],[10,10,10,12],[8,10,8,12],[8,13,10,13],[2,6,2,8],[3,6,3,8],[6,6,6,8],[7,6,7,7],[8,6,8,8],[10,6,10,8],[14,6,14,8],[15,6,15,8],[16,7,16,8],[13,6,13,8],[12,13,15,13],[13,10,13,12],[14,10,14,12],[15,10,15,12],[16,10,16,12],[0,2,0,4],[0,7,0,8],[0,10,0,12],[1,1,4,4],[4,6,4,8],[3,10,3,12],[4,10,4,12]]}
[null,null,null,null,null,null,4,"Destination"]
[null,"Instructions\n\nChoose the character's alignment and primary stat in the \"Signifier\" box. The spreadsheet will place the Signifier card in this position, and then draw the remaining cards. Press F9 to deal a new spread\n\nNone of the cards in the Cross spread are misaligned.",null,null,null,null,{"$f":"IFERROR(LEFT(VLOOKUP(G3,Cards,3,FALSE),3),\"\")","v":""},null,{"$f":"IFERROR(VLOOKUP(G3,Cards,4,FALSE),\"\")","v":""}]
[null,null,null,null,null,null,{"$f":"IF(LEN($G$9)>0,Draw!S6,\"\")","v":""}]
[null,null,null,null,null,null,{"$f":"IFERROR(VLOOKUP(G3,Cards,5,FALSE),\"\")","v":""}]
[]
[]
[null,null,null,null,null,null,"Signifier"]
[null,1,{"$f":"IFERROR(LEFT(VLOOKUP(C9,Cards,3,FALSE),3),\"\")","v":""},null,{"$f":"IFERROR(VLOOKUP(C9,Cards,4,FALSE),\"\")","v":""},null,null,null,null,null,{"$f":"IFERROR(LEFT(VLOOKUP(K9,Cards,3,FALSE),3),\"\")","v":""},null,{"$f":"IFERROR(VLOOKUP(K9,Cards,4,FALSE),\"\")","v":""},3]
[null,"Beginning",{"$f":"IF(LEN($G$9)>0,Draw!S3,\"\")","v":""},null,null,null,{"$f":"IFERROR(VLOOKUP(G8&I8,Cards!$A$2:$F$55,2,FALSE),\"\")","v":""},null,null,null,{"$f":"IF(LEN($G$9)>0,Draw!S5,\"\")","v":""},null,null,"Talent"]
[null,null,{"$f":"IFERROR(VLOOKUP(C9,Cards,5,FALSE),\"\")","v":""},null,null,null,{"$f":"IFERROR(VLOOKUP(G9,Cards,5,FALSE),\"\")","v":""},null,null,null,{"$f":"IFERROR(VLOOKUP(K9,Cards,5,FALSE),\"\")","v":""}]
[]
[]
[null,null,null,null,null,null,{"$f":"IFERROR(LEFT(VLOOKUP(G14,Cards,3,FALSE),3),\"\")","v":""},null,{"$f":"IFERROR(VLOOKUP(G14,Cards,4,FALSE),\"\")","v":""}]
[null,null,null,null,null,null,{"$f":"IF(LEN($G$9)>0,Draw!S4,\"\")","v":""}]
[null,null,null,null,null,null,{"$f":"IFERROR(VLOOKUP(G14,Cards,5,FALSE),\"\")","v":""}]
[]
[null,null,null,null,null,null,2,"Impetus"]

{"sheet":"Cross (U-fill)","index":8,"n_rows":17,"n_cols":14,"rows_kept":17,"cut":false,"hidden":false,"merged":[[16,2,16,4],[16,10,16,12],[16,7,16,8],[8,1,10,1],[15,10,15,12],[14,6,14,8],[15,6,15,8],[14,10,14,12],[13,10,13,12],[9,6,9,8],[8,6,8,8],[10,10,10,12],[9,10,9,12],[15,2,15,4],[12,1,15,1],[14,2,14,4],[0,10,0,12],[8,13,10,13],[0,7,0,8],[8,2,8,4],[9,2,9,4],[1,1,4,4],[0,2,0,4],[3,6,3,8],[2,6,2,8],[4,6,4,8],[6,6,6,8],[7,6,7,7],[8,10,8,12],[12,13,15,13],[1,13,4,13],[10,2,10,4],[10,6,10,8],[2,10,2,12],[3,10,3,12],[4,10,4,12],[13,2,13,4],[13,6,13,8]]}
[null,null,null,null,null,null,4,"Destination"]
[null,"Instructions\n\nChoose the character's alignment and primary stat in the \"Signifier\" box. The spreadsheet will automatically place the corresponding Signifier card in this position.\n\nThen, place the remainder of the cards in the spread using the grey drop-down boxes. None of the cards in the Cross spread are misaligned.\n\nNote that spreadsheet does not try to detect if the same card is entered in multiple positions.",null,null,null,null,{"$f":"IFERROR(LEFT(VLOOKUP(G3,Cards,3,FALSE),3),\"\")","v":""},null,{"$f":"IFERROR(VLOOKUP(G3,Cards,4,FALSE),\"\")","v":""}]
[]
[null,null,null,null,null,null,{"$f":"IFERROR(VLOOKUP(G3,Cards,5,FALSE),\"\")","v":""}]
[]
[]
[null,null,null,null,null,null,"Signifier"]
[null,1,{"$f":"IFERROR(LEFT(VLOOKUP(C9,Cards,3,FALSE),3),\"\")","v":""},null,{"$f":"IFERROR(VLOOKUP(C9,Cards,4,FALSE),\"\")","v":""},null,null,null,null,null,{"$f":"IFERROR(LEFT(VLOOKUP(K9,Cards,3,FALSE),3),\"\")","v":""},null,{"$f":"IFERROR(VLOOKUP(K9,Cards,4,FALSE),\"\")","v":""},3]
[null,"Beginning",null,null,null,null,{"$f":"IFERROR(VLOOKUP(G8&I8,Cards!$A$2:$F$55,2,FALSE),\"\")","v":""},null,null,null,null,null,null,"Talent"]
[null,null,{"$f":"IFERROR(VLOOKUP(C9,Cards,5,FALSE),\"\")","v":""},null,null,null,{"$f":"IFERROR(VLOOKUP(G9,Cards,5,FALSE),\"\")","v":""},null,null,null,{"$f":"IFERROR(VLOOKUP(K9,Cards,5,FALSE),\"\")","v":""}]
[]
[]
[null,null,null,null,null,null,{"$f":"IFERROR(LEFT(VLOOKUP(G14,Cards,3,FALSE),3),\"\")","v":""},null,{"$f":"IFERROR(VLOOKUP(G14,Cards,4,FALSE),\"\")","v":""}]
[]
[null,null,null,null,null,null,{"$f":"IFERROR(VLOOKUP(G14,Cards,5,FALSE),\"\")","v":""}]
[]
[null,null,null,null,null,null,2,"Impetus"]

{"sheet":"Sword (autodraw)","index":9,"n_rows":51,"n_cols":12,"rows_kept":51,"cut":false,"hidden":false,"merged":[[3,5,4,7],[1,6,1,7],[1,1,5,3],[9,1,10,3],[7,2,7,3],[7,10,7,11],[9,9,10,11],[5,5,10,7],[11,5,12,7],[14,6,14,7],[11,9,16,11],[17,9,18,11],[17,1,18,3],[11,1,16,3],[40,6,40,7],[37,5,38,7],[31,5,36,7],[29,5,30,7],[16,5,17,7],[18,5,23,7],[50,5,51,7],[44,5,49,7],[42,5,43,7],[27,6,27,7],[24,5,25,7]]}
[]
[null,"Instructions\n\nPress F9 to deal cards into the Sword. Cards that are reversed are indicated with an X in the \"Reversed\" box (upper left) and are misaligned. If a card has a misaligned meaning, it is printed in the lower box.",null,null,null,6,"Outcome"]
[null,null,null,null,null,{"$f":"IF(RANDBETWEEN(0,1)=1,\"X\",\"\")","v":"X"},"Reversed",{"$f":"IFERROR(VLOOKUP(F4,Cards,4,FALSE),\"\")","v":"NE"}]
[null,null,null,null,null,{"$f":"VLOOKUP(F2,Draw!$I$2:$K$10,3,FALSE)","v":"Mute Hag"}]
[]
[null,null,null,null,null,{"$f":"IFERROR(VLOOKUP(F4,Cards,5,FALSE),\"\")","v":"might be silent, but the eye she holds lets her see into the hearts of men. This hag invokes blood pacts and poisonous secrets, the kind that turn brother against brother and son against father. It is a card that performers loathe, as it leaves them stumbling over their words and songs."}]
[]
[null,4,"Tools, Allies, Ideas",null,null,null,null,null,null,5,"Tools, Allies, Ideas"]
[null,{"$f":"IF(RANDBETWEEN(0,1)=1,\"X\",\"\")","v":"X"},"Reversed",{"$f":"IFERROR(VLOOKUP(B10,Cards,4,FALSE),\"\")","v":"NE"},null,null,null,null,null,{"$f":"IF(RANDBETWEEN(0,1)=1,\"X\",\"\")","v":""},"Reversed",{"$f":"IFERROR(VLOOKUP(J10,Cards,4,FALSE),\"\")","v":"LE"}]
[null,{"$f":"VLOOKUP(B8,Draw!$I$2:$K$10,3,FALSE)","v":"Betrayal"},null,null,null,null,null,null,null,{"$f":"VLOOKUP(J8,Draw!$I$2:$K$10,3,FALSE)","v":"Eclipse"}]
[]
[null,{"$f":"IFERROR(VLOOKUP(B10,Cards,5,FALSE),\"\")","v":"is selfishness incarnate. Envy twists the spirit and leads ultimately to devastation. It can also indicate a person whose loveliness hides an evil heart. "},null,null,null,{"$f":"IFERROR(IF(F3=\"\",\"\",IF(RIGHT(H3,1)=\"N\",\"\",VLOOKUP(F4,Cards,6,FALSE))),\"\")","v":"Misaligned, it indicates unshakable loyalty and lucidity of speech."},null,null,null,{"$f":"IFERROR(VLOOKUP(J10,Cards,5,FALSE),\"\")","v":"represents self-doubt and loss of purpose. This card afflicts those with faith in the divine, as their talents can wane under this stress. It can also indicate a loss of way along a path. "}]
[]
[]
[null,null,null,null,null,3,"Challenge"]
[null,null,null,null,null,{"$f":"IF(RANDBETWEEN(0,1)=1,\"X\",\"\")","v":"X"},"Reversed",{"$f":"IFERROR(VLOOKUP(F17,Cards,4,FALSE),\"\")","v":"CG"}]
[null,null,null,null,null,{"$f":"VLOOKUP(F15,Draw!$I$2:$K$10,3,FALSE)","v":"Desert"}]
[null,{"$f":"IFERROR(IF(B9=\"\",\"\",IF(RIGHT(D9,1)=\"N\",\"\",VLOOKUP(B10,Cards,6,FALSE))),\"\")","v":"Misaligned, the card means self-sacrifice or turning away from the material world and its temptations."},null,null,null,null,null,null,null,{"$f":"IFERROR(IF(J9=\"\",\"\",IF(RIGHT(L9,1)=\"N\",\"\",VLOOKUP(J10,Cards,6,FALSE))),\"\")","v":""}]
[null,null,null,null,null,{"$f":"IFERROR(VLOOKUP(F17,Cards,5,FALSE),\"\")","v":"is an environment so bleak that none can survive it without aid. For those who find that aid, the journey across the wastes can lead to great things. The sphinx on this card can refer to a mystic or doctor bringing salvation in times of plague or illness."}]
[]
[]
[]
[]
[]
[null,null,null,null,null,{"$f":"IFERROR(IF(F16=\"\",\"\",IF(RIGHT(H16,1)=\"N\",\"\",VLOOKUP(F17,Cards,6,FALSE))),\"\")","v":"Misaligned, it implies the subject cannot rely on the help of others and will assuredly be lost."}]
[]
[]
[null,null,null,null,null,2,"Approach"]
[null,null,null,null,null,{"$f":"IF(RANDBETWEEN(0,1)=1,\"X\",\"\")","v":"X"},"Reversed",{"$f":"IFERROR(VLOOKUP(F30,Cards,4,FALSE),\"\")","v":"CG"}]
[null,null,null,null,null,{"$f":"VLOOKUP(F28,Draw!$I$2:$K$10,3,FALSE)","v":"Joke"}]
[]
[null,null,null,null,null,{"$f":"IFERROR(VLOOKUP(F30,Cards,5,FALSE),\"\")","v":"shows a terror that must be overcome—but not by physical means. This monster can only be defeated by trickery or artifice. This card can represent the value of humor in finding the way past a difficult person or task."}]
[]
[]
[]
[]
[]
[null,null,null,null,null,{"$f":"IFERROR(IF(F29=\"\",\"\",IF(RIGHT(H29,1)=\"N\",\"\",VLOOKUP(F30,Cards,6,FALSE))),\"\")","v":"Misaligned, it often signals that the joke will be on you."}]
[]
[]
[null,null,null,null,null,1,"Problem"]
[null,null,null,null,null,{"$f":"IF(RANDBETWEEN(0,1)=1,\"X\",\"\")","v":""},"Reversed",{"$f":"IFERROR(VLOOKUP(F43,Cards,4,FALSE),\"\")","v":"N"}]
[null,null,null,null,null,{"$f":"VLOOKUP(F41,Draw!$I$2:$K$10,3,FALSE)","v":"Bear"}]
[]
[null,null,null,null,null,{"$f":"IFERROR(VLOOKUP(F43,Cards,5,FALSE),\"\")","v":"is pure strength. People often make the mistake of thinking The Bear can be tamed or trained. When someone believes he has The Bear under control, that person eventually learns the error of his ways. Brute force might be required here, but the consequences of its use might be severe."}]
[]
[]
[]
[]
[]
[null,null,null,null,null,{"$f":"IFERROR(IF(F42=\"\",\"\",IF(RIGHT(H42,1)=\"N\",\"\",VLOOKUP(F43,Cards,6,FALSE))),\"\")","v":""}]

{"sheet":"Sword (U-fill)","index":10,"n_rows":51,"n_cols":12,"rows_kept":51,"cut":false,"hidden":false,"merged":[[17,1,18,3],[5,5,10,7],[16,5,17,7],[9,9,10,11],[11,9,16,11],[17,9,18,11],[11,5,12,7],[14,6,14,7],[7,10,7,11],[7,2,7,3],[1,1,5,3],[9,1,10,3],[11,1,16,3],[3,5,4,7],[1,6,1,7],[29,5,30,7],[27,6,27,7],[18,5,23,7],[24,5,25,7],[31,5,36,7],[40,6,40,7],[44,5,49,7],[50,5,51,7],[42,5,43,7],[37,5,38,7]]}
[]
[null,"Instructions\n\nChoose a card for each position in the Sword using the drop-down box then indicate whether or not that card is reversed by placing an X in the \"Reversed\" box in the upper left. If a card has a misaligned placement, the misaligned meaning is printed in the lower box.",null,null,null,6,"Outcome"]
[null,null,null,null,null,null,"Reversed",{"$f":"IFERROR(VLOOKUP(F4,Cards,4,FALSE),\"\")","v":""}]
[]
[]
[null,null,null,null,null,{"$f":"IFERROR(VLOOKUP(F4,Cards,5,FALSE),\"\")","v":""}]
[]
[null,4,"Tools, Allies, Ideas",null,null,null,null,null,null,5,"Tools, Allies, Ideas"]
[null,null,"Reversed",{"$f":"IFERROR(VLOOKUP(B10,Cards,4,FALSE),\"\")","v":""},null,null,null,null,null,null,"Reversed",{"$f":"IFERROR(VLOOKUP(J10,Cards,4,FALSE),\"\")","v":""}]
[]
[]
[null,{"$f":"IFERROR(VLOOKUP(B10,Cards,5,FALSE),\"\")","v":""},null,null,null,{"$f":"IFERROR(IF(F3=\"\",\"\",IF(RIGHT(H3,1)=\"N\",\"\",VLOOKUP(F4,Cards,6,FALSE))),\"\")","v":""},null,null,null,{"$f":"IFERROR(VLOOKUP(J10,Cards,5,FALSE),\"\")","v":""}]
[]
[]
[null,null,null,null,null,3,"Challenge"]
[null,null,null,null,null,null,"Reversed",{"$f":"IFERROR(VLOOKUP(F17,Cards,4,FALSE),\"\")","v":""}]
[]
[null,{"$f":"IFERROR(IF(B9=\"\",\"\",IF(RIGHT(D9,1)=\"N\",\"\",VLOOKUP(B10,Cards,6,FALSE))),\"\")","v":""},null,null,null,null,null,null,null,{"$f":"IFERROR(IF(J9=\"\",\"\",IF(RIGHT(L9,1)=\"N\",\"\",VLOOKUP(J10,Cards,6,FALSE))),\"\")","v":""}]
[null,null,null,null,null,{"$f":"IFERROR(VLOOKUP(F17,Cards,5,FALSE),\"\")","v":""}]
[]
[]
[]
[]
[]
[null,null,null,null,null,{"$f":"IFERROR(IF(F16=\"\",\"\",IF(RIGHT(H16,1)=\"N\",\"\",VLOOKUP(F17,Cards,6,FALSE))),\"\")","v":""}]
[]
[]
[null,null,null,null,null,2,"Approach"]
[null,null,null,null,null,null,"Reversed",{"$f":"IFERROR(VLOOKUP(F30,Cards,4,FALSE),\"\")","v":""}]
[]
[]
[null,null,null,null,null,{"$f":"IFERROR(VLOOKUP(F30,Cards,5,FALSE),\"\")","v":""}]
[]
[]
[]
[]
[]
[null,null,null,null,null,{"$f":"IFERROR(IF(F29=\"\",\"\",IF(RIGHT(H29,1)=\"N\",\"\",VLOOKUP(F30,Cards,6,FALSE))),\"\")","v":""}]
[]
[]
[null,null,null,null,null,1,"Problem"]
[null,null,null,null,null,null,"Reversed",{"$f":"IFERROR(VLOOKUP(F43,Cards,4,FALSE),\"\")","v":""}]
[]
[]
[null,null,null,null,null,{"$f":"IFERROR(VLOOKUP(F43,Cards,5,FALSE),\"\")","v":""}]
[]
[]
[]
[]
[]
[null,null,null,null,null,{"$f":"IFERROR(IF(F42=\"\",\"\",IF(RIGHT(H42,1)=\"N\",\"\",VLOOKUP(F43,Cards,6,FALSE))),\"\")","v":""}]

{"sheet":"Path (autodraw)","index":11,"n_rows":52,"n_cols":24,"rows_kept":52,"cut":false,"hidden":false,"merged":[[1,17,1,18],[29,8,29,11],[26,16,27,20],[26,10,27,14],[29,14,29,17],[20,16,25,20],[20,10,25,14],[3,8,3,11],[1,1,1,16],[3,2,3,5],[3,20,3,23],[17,3,27,3],[3,14,3,17],[26,4,27,8],[7,13,12,17],[7,19,12,23],[16,17,16,20],[16,11,16,14],[18,16,19,20],[4,0,14,0],[13,1,14,5],[7,1,12,5],[5,1,6,5],[5,19,6,23],[13,19,14,23],[5,7,6,11],[13,13,14,17],[5,13,6,17],[20,4,25,8],[18,4,19,8],[16,5,16,8],[7,7,12,11],[13,7,14,11],[18,10,19,14],[51,10,52,14],[30,6,40,6],[42,9,52,9],[43,10,44,14],[39,7,40,11],[33,13,38,17],[33,7,38,11],[39,13,40,17],[31,13,32,17],[45,10,50,14],[31,7,32,11]]}
[]
[null,"Instructions. Click the deal button to deal the cards (you MUST click the deal button; unlike the other sheets, this one cannot rely on auto-recalculation) and then select the desired path by putting an X's in the \"Choose\" boxes. Chosen cards are revealed, and misaligned (reversed) cards have their meaning printed in the lower box. Macros must be enabled for this sheet to function."]
[]
[7,null,"Choose",null,null,null,8,null,"Choose",null,null,null,9,null,"Choose",null,null,null,10,null,"Choose"]
["Future",{"$f":"IFERROR(IF(ISBLANK(B4),\"\",IF(VLOOKUP(A4,DrawPath,2,FALSE)=1,\"X\",\"\")),\"\")","v":""},"Reversed",null,null,{"$f":"IFERROR(IF(ISBLANK(B4),\"\",VLOOKUP(B6,Cards,4,FALSE)),\"\")","v":""},null,{"$f":"IFERROR(IF(ISBLANK(H4),\"\",IF(VLOOKUP(G4,DrawPath,2,FALSE)=1,\"X\",\"\")),\"\")","v":""},"Reversed",null,null,{"$f":"IFERROR(IF(ISBLANK(H4),\"\",VLOOKUP(H6,Cards,4,FALSE)),\"\")","v":""},null,{"$f":"IFERROR(IF(ISBLANK(N4),\"\",IF(VLOOKUP(M4,DrawPath,2,FALSE)=1,\"X\",\"\")),\"\")","v":""},"Reversed",null,null,{"$f":"IFERROR(IF(ISBLANK(N4),\"\",VLOOKUP(N6,Cards,4,FALSE)),\"\")","v":""},null,{"$f":"IFERROR(IF(ISBLANK(T4),\"\",IF(VLOOKUP(S4,DrawPath,2,FALSE)=1,\"X\",\"\")),\"\")","v":""},"Reversed",null,null,{"$f":"IFERROR(IF(ISBLANK(T4),\"\",VLOOKUP(T6,Cards,4,FALSE)),\"\")","v":""}]
[null,{"$f":"IFERROR(IF(ISBLANK(B4),\"\",VLOOKUP(A4,DrawPath,3,FALSE)),\"\")","v":""},null,null,null,null,null,{"$f":"IFERROR(IF(ISBLANK(H4),\"\",VLOOKUP(G4,DrawPath,3,FALSE)),\"\")","v":""},null,null,null,null,null,{"$f":"IFERROR(IF(ISBLANK(N4),\"\",VLOOKUP(M4,DrawPath,3,FALSE)),\"\")","v":""},null,null,null,null,null,{"$f":"IFERROR(IF(ISBLANK(T4),\"\",VLOOKUP(S4,DrawPath,3,FALSE)),\"\")","v":""}]
[]
[null,{"$f":"IFERROR(VLOOKUP(B6,Cards,5,FALSE),\"\")","v":""},null,null,null,null,null,{"$f":"IFERROR(VLOOKUP(H6,Cards,5,FALSE),\"\")","v":""},null,null,null,null,null,{"$f":"IFERROR(VLOOKUP(N6,Cards,5,FALSE),\"\")","v":""},null,null,null,null,null,{"$f":"IFERROR(VLOOKUP(T6,Cards,5,FALSE),\"\")","v":""}]
[]
[]
[]
[]
[]
[null,{"$f":"IFERROR(IF(B5=\"X\",IF(RIGHT(F5,1)=\"N\",\"\",VLOOKUP(B6,Cards,6,FALSE)),\"\"),\"\")","v":""},null,null,null,null,null,{"$f":"IFERROR(IF(H5=\"X\",IF(RIGHT(L5,1)=\"N\",\"\",VLOOKUP(H6,Cards,6,FALSE)),\"\"),\"\")","v":""},null,null,null,null,null,{"$f":"IFERROR(IF(N5=\"X\",IF(RIGHT(R5,1)=\"N\",\"\",VLOOKUP(N6,Cards,6,FALSE)),\"\"),\"\")","v":""},null,null,null,null,null,{"$f":"IFERROR(IF(T5=\"X\",IF(RIGHT(X5,1)=\"N\",\"\",VLOOKUP(T6,Cards,6,FALSE)),\"\"),\"\")","v":""}]
[]
[]
[null,null,null,4,null,"Choose",null,null,null,5,null,"Choose",null,null,null,6,null,"Choose"]
[null,null,null,"Present",{"$f":"IFERROR(IF(ISBLANK(E17),\"\",IF(VLOOKUP(D17,DrawPath,2,FALSE)=1,\"X\",\"\")),\"\")","v":""},"Reversed",null,null,{"$f":"IFERROR(IF(ISBLANK(E17),\"\",VLOOKUP(E19,Cards,4,FALSE)),\"\")","v":""},5,{"$f":"IFERROR(IF(ISBLANK(K17),\"\",IF(VLOOKUP(J17,DrawPath,2,FALSE)=1,\"X\",\"\")),\"\")","v":""},"Reversed",null,null,{"$f":"IFERROR(IF(ISBLANK(K17),\"\",VLOOKUP(K19,Cards,4,FALSE)),\"\")","v":""},6,{"$f":"IFERROR(IF(ISBLANK(Q17),\"\",IF(VLOOKUP(P17,DrawPath,2,FALSE)=1,\"X\",\"\")),\"\")","v":""},"Reversed",null,null,{"$f":"IFERROR(IF(ISBLANK(Q17),\"\",VLOOKUP(Q19,Cards,4,FALSE)),\"\")","v":""}]
[null,null,null,null,{"$f":"IFERROR(IF(ISBLANK(E17),\"\",VLOOKUP(D17,DrawPath,3,FALSE)),\"\")","v":""},null,null,null,null,null,{"$f":"IFERROR(IF(ISBLANK(K17),\"\",VLOOKUP(J17,DrawPath,3,FALSE)),\"\")","v":""},null,null,null,null,null,{"$f":"IFERROR(IF(ISBLANK(Q17),\"\",VLOOKUP(P17,DrawPath,3,FALSE)),\"\")","v":""}]
[]
[null,null,null,null,{"$f":"IFERROR(VLOOKUP(E19,Cards,5,FALSE),\"\")","v":""},null,null,null,null,null,{"$f":"IFERROR(VLOOKUP(K19,Cards,5,FALSE),\"\")","v":""},null,null,null,null,null,{"$f":"IFERROR(VLOOKUP(Q19,Cards,5,FALSE),\"\")","v":""}]
[]
[]
[]
[]
[]
[null,null,null,null,{"$f":"IFERROR(IF(E18=\"X\",IF(RIGHT(I18,1)=\"N\",\"\",VLOOKUP(E19,Cards,6,FALSE)),\"\"),\"\")","v":""},null,null,null,null,null,{"$f":"IFERROR(IF(K18=\"X\",IF(RIGHT(O18,1)=\"N\",\"\",VLOOKUP(K19,Cards,6,FALSE)),\"\"),\"\")","v":""},null,null,null,null,null,{"$f":"IFERROR(IF(Q18=\"X\",IF(RIGHT(U18,1)=\"N\",\"\",VLOOKUP(Q19,Cards,6,FALSE)),\"\"),\"\")","v":""}]
[]
[]
[null,null,null,null,null,null,2,null,"Choose",null,null,null,3,null,"Choose"]
[null,null,null,null,null,null,"Past",{"$f":"IFERROR(IF(ISBLANK(H30),\"\",IF(VLOOKUP(G30,DrawPath,2,FALSE)=1,\"X\",\"\")),\"\")","v":""},"Reversed",null,null,{"$f":"IFERROR(IF(ISBLANK(H30),\"\",VLOOKUP(H32,Cards,4,FALSE)),\"\")","v":""},2,{"$f":"IFERROR(IF(ISBLANK(N30),\"\",IF(VLOOKUP(M30,DrawPath,2,FALSE)=1,\"X\",\"\")),\"\")","v":""},"Reversed",null,null,{"$f":"IFERROR(IF(ISBLANK(N30),\"\",VLOOKUP(N32,Cards,4,FALSE)),\"\")","v":""}]
[null,null,null,null,null,null,null,{"$f":"IFERROR(IF(ISBLANK(H30),\"\",VLOOKUP(G30,DrawPath,3,FALSE)),\"\")","v":""},null,null,null,null,null,{"$f":"IFERROR(IF(ISBLANK(N30),\"\",VLOOKUP(M30,DrawPath,3,FALSE)),\"\")","v":""}]
[]
[null,null,null,null,null,null,null,{"$f":"IFERROR(VLOOKUP(H32,Cards,5,FALSE),\"\")","v":""},null,null,null,null,null,{"$f":"IFERROR(VLOOKUP(N32,Cards,5,FALSE),\"\")","v":""}]
[]
[]
[]
[]
[]
[null,null,null,null,null,null,null,{"$f":"IFERROR(IF(H31=\"X\",IF(RIGHT(L31,1)=\"N\",\"\",VLOOKUP(H32,Cards,6,FALSE)),\"\"),\"\")","v":""},null,null,null,null,null,{"$f":"IFERROR(IF(N31=\"X\",IF(RIGHT(R31,1)=\"N\",\"\",VLOOKUP(N32,Cards,6,FALSE)),\"\"),\"\")","v":""}]
[]
[null,null,null,null,null,null,null,null,null,1]
[null,null,null,null,null,null,null,null,null,"Role",{"$f":"IFERROR(IF(ISBLANK(K42),\"\",IF(VLOOKUP(J42,DrawPath,2,FALSE)=1,\"X\",\"\")),\"\")","v":""},"Reversed",null,null,{"$f":"IFERROR(VLOOKUP(K44,Cards,4,FALSE),\"\")","v":"NE"}]
[null,null,null,null,null,null,null,null,null,null,{"$f":"IFERROR(VLOOKUP(J42,DrawPath,3,FALSE),\"\")","v":"Mute Hag"}]
[]
[null,null,null,null,null,null,null,null,null,null,{"$f":"IFERROR(VLOOKUP(K44,Cards,5,FALSE),\"\")","v":"might be silent, but the eye she holds lets her see into the hearts of men. This hag invokes blood pacts and poisonous secrets, the kind that turn brother against brother and son against father. It is a card that performers loathe, as it leaves them stumbling over their words and songs."}]
[]
[]
[]
[]
[]
[null,null,null,null,null,null,null,null,null,null,{"$f":"IFERROR(IF(K43=\"X\",IF(RIGHT(O43,1)=\"N\",\"\",VLOOKUP(K44,Cards,6,FALSE)),\"\"),\"\")","v":""}]

{"sheet":"Cards","index":12,"n_rows":55,"n_cols":7,"rows_kept":55,"cut":false,"hidden":true,"merged":[]}
["AbilityIndex","Name","Suit","Ability","Alignment","Description","Misaligned"]
[{"$f":"D2&E2","v":"DexterityLE"},"Avalanche","Keys","Dexterity","LE","is disaster. It is an unthinking, unreasoning thing that overruns all who get in its way. It can represent physical disaster or the disaster that comes from a panicked crowd or other unthinking group or entity. ","Misaligned, the calamity is likely to be averted, though not without consequence."]
["StrengthN","Bear","Hammers","Strength","N","is pure strength. People often make the mistake of thinking The Bear can be tamed or trained. When someone believes he has The Bear under control, that person eventually learns the error of his ways. Brute force might be required here, but the consequences of its use might be severe."]
["StrengthNE","Beating","Hammers","Strength","NE","signifies coming under attack from all sides, but it can also indicate the dissolution of the self—mentally. Whether the strength is of the flesh or the mind, it dissolves under the relentless attack. ","Misaligned, this card suggests that during the assault, undiscovered strength is found."]
["CharismaNE","Betrayal","Crowns","Charisma","NE","is selfishness incarnate. Envy twists the spirit and leads ultimately to devastation. It can also indicate a person whose loveliness hides an evil heart. ","Misaligned, the card means self-sacrifice or turning away from the material world and its temptations."]
["StrengthCG","Big Sky","Hammers","Strength","CG","shows an epic moment as the slaves of a nation are freed. The slaves’ freedom specifies momentous and powerful change, as old shackles are cast off in the light of day. ","Misaligned, those castoff shackles might be replaced with worse ones."]
["ConstitutionLN","Brass Dwarf","Shields","Constitution","LN","shows an azer who represents invulnerability to a current danger. Although others might fall, he remains hale and strong. The Brass Dwarf can also mean a failure or dark fate for one, which in turn might save all others around him from a greater danger."]
["WisdomCN","Carnival","Stars","Wisdom","CN","is the card of illusions and false dreams. This card can heighten the power of the arcane, but depending on such whimsical forces can be risky. For others, this card depicts imprudent plans or unrealistic ambitions."]
["CharismaCN","Courtesan","Crowns","Charisma","CN","is the card of political intrigue. Her mask embodies the social niceties that must be followed. If it slips, negotiations can take an unexpected turn. The card can also indicate a woman of power who shapes events. How she is treated decides the outcome of the situation."]
["DexterityNG","Cricket","Keys","Dexterity","NG","is a grig, a creature whose mind is as quick as its body. It represents speed and quick passage. Although The Cricket is commonly associated with travel, the peach it sits by represents treasure at the end. ","Misaligned, the journey will go poorly, and the treasure will be one that is lost rather than found."]
["DexterityNE","Crows","Keys","Dexterity","NE","are a dangerous bunch who indicate violent taking of that which is loved. When The Crows appear, murder, theft, or other shocking loss occurs. ","Misaligned, such acts can be averted or the thievery is a just one."]
["StrengthCE","Cyclone","Hammers","Strength","CE","is a force that tears through whatever it meets. This disaster does not come in the course of natural order but is one that comes from the plots of intelligent beings. The Cyclone signifies war, arson, or other plans that destroy everything they touch.","Misaligned, this card can indicate renewal after a blustery trial."]
["DexterityLG","Dance","Keys","Dexterity","LG","is a rich and delicate framework that, like the universe itself, requires everyone within it to abide by its rules, lest the entire construct collapse. It advises staying in perfect step, knowing your place in the greater good. Those who step out of the pattern do so at their peril.","Misaligned, that pattern might be hypnotic, but not to the good of all."]
["DexterityCE","Demon's Lantern","Keys","Dexterity","CE","is the card of traps and tricks, sleight of hand and sleight of mind. These will-o’-wisps and the man who sought their light represent an impossible or intractable situation. ","Misaligned, it represents an opportunity or a guide arriving at a perfect moment to show the way."]
["ConstitutionCG","Desert","Shields","Constitution","CG","is an environment so bleak that none can survive it without aid. For those who find that aid, the journey across the wastes can lead to great things. The sphinx on this card can refer to a mystic or doctor bringing salvation in times of plague or illness.","Misaligned, it implies the subject cannot rely on the help of others and will assuredly be lost."]
["WisdomLE","Eclipse","Stars","Wisdom","LE","represents self-doubt and loss of purpose. This card afflicts those with faith in the divine, as their talents can wane under this stress. It can also indicate a loss of way along a path. ","Misaligned, it can augur an unheralded ability coming to the fore or a concealed location revealed."]
["CharismaLG","Empty Throne","Crowns","Charisma","LG","has a sense of loss that is palpable. The ghost signifies that those who are gone will always be with us. They taught us important lessons, if only we choose to listen. This card can bring information from a far-off or ancient source. ","Misaligned, the ghosts of the past are restless, and might require effort to set at peace."]
["StrengthLE","Fiend","Hammers","Strength","LE","depicts a devil swallowing innocents. It can indicate the deaths of many in a great calamity. The Fiend can also indicate that some sort of dark and intelligent creature is in the area, endangering the populace.","Misaligned, the salvation from the same calamity."]
["IntelligenceN","Foreign Trader","Books","Intelligence","N","is the card of spies and peddlers alike. Any who trade in information are subject to this card’s influence. A bargain made under this card’s auspice always concludes true, but the ramifications of the pact might be shocking for those who do not understand its implications."]
["StrengthLN","Forge","Hammers","Strength","LN","evokes strength through great diversity. The blacksmith represents those who can survive the mephits’ trial by fire, but The Forge’s fire is so strong it burns many to cinders instead. This card often represents a dangerous event that needs many sources of strength to overcome."]
["IntelligenceLG","Hidden Truth","Books","Intelligence","LG","symbolizes the ability to see past the obvious and the banal to a greater truth within. Sometimes this discovery is an esoteric one, sometimes it is a literal find, such as an item revealed within a room. Regardless, it is a card with the power to reveal secrets. ","Misaligned, it can mean a secret being revealed to the subject’s detriment."]
["IntelligenceNE","Idiot","Books","Intelligence","NE","is a card of grave foolishness and greed. It can mean bribery, blackmail, or naivety so grand it can see no evil. The goblins have captured a foolhardy man, representing the knowledge that loss of dignity can precede loss of life. ","Misaligned, this card might indicate feigning of idiocy to disguise one’s gifts."]
["IntelligenceLN","Inquisitor","Books","Intelligence","LN","accepts nothing save the truth. He represents immutable reality, that which cannot be fooled or swayed in any way. To attempt to go against this unchangeable object, person, or idea is to court disaster."]
["IntelligenceCG","Joke","Books","Intelligence","CG","shows a terror that must be overcome—but not by physical means. This monster can only be defeated by trickery or artifice. This card can represent the value of humor in finding the way past a difficult person or task.","Misaligned, it often signals that the joke will be on you."]
["DexterityCG","Juggler","Keys","Dexterity","CG","represents fate, the gods, or those who play with the lives and destinies of others. If this titanic Juggler can keep up his rhythm, he will achieve his goals.","Misaligned, he falters, and tragedy and failure are assured for those whose lives he meddled in."]
["StrengthNG","Keep","Hammers","Strength","NG","is a symbol of quiet strength, one that can move when necessary, yet stand firm through the greatest hardship. Those represented by The Keep are not shaken by any force.","Misaligned, it can mean giving way to temptation or falling in the face of greater strength."]
["CharismaCE","Liar","Crowns","Charisma","CE","is love at its most treacherous. This is not the love that moves mountains, this is the love that rips the heart in two and causes lovers to leap to their deaths. This lamia can mean obsession, unrequited passion, or doomed love. ","Misaligned, the card can indicate a new relationship beginning, although disguised as something much less beautiful."]
["DexterityLN","Locksmith","Keys","Dexterity","LN","presents the subject with the keys she needs to unlock her destiny. He grants the tools to access a new location, clue, or treasure. He does not grant insight into how or where to use the tools granted. This card often represents a strange, ancient, or magical object."]
["WisdomCE","Lost","Stars","Wisdom","CE","is the card of emptiness and loss of identity. The bodak shown is forever mad, lost in a world of lunatics, insane asylums, and mass killers. For those under its influence, the world makes no sense. It evokes times where all is babble, as when meeting someone who speaks only in another tongue.","Misaligned, it can indicate clarity of mind under duress."]
["CharismaLN","Marriage","Crowns","Charisma","LN","can be a union of people, ideas, kingdoms, or other distinct things. The progeny of the salamander and water weird shows that a union might bring forth new power from both parties, or it might be a ruinous joining of that which should never have been united. Once wedded, the two cannot be parted. This is the card of permanent change."]
["WisdomNG","Midwife","Stars","Wisdom","NG","is a conduit to creation, although she does not create on her own. This halfling is a key that lets new life or information into the world. Her heart can see the good in even the worst situation. She can see the import of any new arrival.","Misaligned, the new arrival will likely not inspire much joy."]
["ConstitutionCN","Mountain Man","Shields","Constitution","CN","signifies an encounter with a physical power outside of one’s control. The giant could personify an authority, an army, an earthquake, or even a desperately needed rainstorm in a parched land. Acceding to the force might be wise, but surviving it is paramount."]
["WisdomNE","Mute Hag","Stars","Wisdom","NE","might be silent, but the eye she holds lets her see into the hearts of men. This hag invokes blood pacts and poisonous secrets, the kind that turn brother against brother and son against father. It is a card that performers loathe, as it leaves them stumbling over their words and songs.","Misaligned, it indicates unshakable loyalty and lucidity of speech."]
["WisdomN","Owl","Stars","Wisdom","N","represents the eternal wisdom of the natural order. It is the harsh realism that causes a pack of wolves to cull the weak in the herd. It is tragic for the culled deer, but through such actions the herd grows stronger. The needle The Owl holds binds life together, but just as easily can pick that life apart."]
["StrengthLG","Paladin","Hammers","Strength","LG","symbolizes standing strong in the face of adversity. The Paladin does not back down under any circumstances. This card usually indicates the need to stay the course or do what one knows is right, even if it takes a heavy toll.","Misaligned, such a course might be foolhardy."]
["DexterityN","Peacock","Keys","Dexterity","N","is a creature of astonishing beauty, but it is a beauty that can only be retained if frozen like a cockatrice’s statues. Smarter people accept the passage of time and dance out of The Peacock’s way. Its appearance always signifies a sudden personal shift in attitude or societal change."]
["WisdomCG","Publican","Stars","Wisdom","CG","represents fellowship and camaraderie, and a place of refuge for those in need. Most would find the cyclops inconsequential, but he has insights relevant to the reading or a quest.","Misaligned, The Publican represents refuge unfound or false information given at a crucial moment."]
["WisdomLN","Queen Mother","Stars","Wisdom","LN","is knowledge personified. The formian knows all but does not reveal anything to anyone who does not show her proper worship. She is fond of the powerless and the underclasses, for they serve her when the more powerful refuse. She represents the need to become part of a society, or to bow before those who know more than you."]
["DexterityCN","Rabbit Prince","Keys","Dexterity","CN","is a quirky fellow who represents the vagaries of hand-to-hand combat. The Prince is battle personified and nothing if not capricious. As his broken sword symbolizes, any combatant can fall in battle, no matter how brave or skilled. This card sometimes stands for younger members of royalty or other powerful households."]
["IntelligenceLE","Rakshasa","Books","Intelligence","LE","is the card of dominance and mind control. The creature sitting serenely upon the back of the slave indicates an exterior force imposing itself upon another being’s mind. On occasion, the slavery is literal, but more often it is mental enslavement to a force or idea.","Misaligned, that enslavement can be cast off in the face of new information."]
["ConstitutionNE","Sickness","Shields","Constitution","NE","represents plague, pestilence, famine, and disease. It can also indicate corruption of the soul or of a multitude of souls.","Misaligned, The Sickness represents either great health or a chance to stop such a disaster."]
["IntelligenceCE","Snakebite","Books","Intelligence","CE","is a vile, poisoned weapon. Poison takes many forms—not all of them physical. The poison on the assassin’s blade represents the death of ideas and freedom, as well as the ability to turn friends against each other or poison the minds of the virtuous.","Misaligned, this card can mean a mental leap, a new friendship, or a discovery."]
["ConstitutionNG","Survivor","Shields","Constitution","NG","represents a person who has been through an ordeal of some kind. Surrounded by his fallen comrades, the man represents someone or something thought lost forever, but found once more. It can also represent rebirth.","Misaligned, The Survivor can evoke terrible news or a profound loss."]
["ConstitutionLE","Tangled Briar","Shields","Constitution","LE","is a card of ancient deeds. It indicates an object or person from long ago that will somehow have great influence on the situation. The object or person in question is one lost or murdered in some foul way.","Misaligned, the thorny past brings not just pain, but hope for the future."]
["ConstitutionN","Teamster","Shields","Constitution","N","is a driving external force that keeps the subject going, no matter what. This force can be physical or mental, as a person who exhorts others to continue on when they have no more strength to give. The force can be for good or ill but cannot be ignored. The half-orc  depicted is leading a life of constant toil, but for his own betterment."]
["CharismaNG","Theater","Crowns","Charisma","NG","is the card of true prophecy. The puppets act out a scene, just as the prophet acts out a scene in which she has no part. The prophet is the audience and the prophecy is the show. She has no influence on what she sees, and its importance is often not recognized until too late.","Misaligned, the prophecy is just for show."]
["ConstitutionLG","Trumpet","Shields","Constitution","LG","is a declaration of power. This archon is an aggressive force who wades into the direst situations without hesitation in the cause of right. It is a card that grants all or nothing at all.","Misaligned, it suggests the motives aren’t noble, bringing injury and crumbling strength."]
["CharismaN","Twin","Crowns","Charisma","N","signals duality of purpose or identity. This doppelganger can also mean indecision, as a person or group wavers between very different options. It can also mean divided loyalties abound. The card makes a harrower wary, as it can also mean the entire spread has a hidden or reversed meaning."]
["CharismaLE","Tyrant","Crowns","Charisma","LE","indicates a ruler who is a blight upon those ruled. The dragon might indicate a monarch, overseer, or head of a household. Whoever this person is, he does harm to those over whom he holds sway, whether he realizes it or not","Misaligned, it might show a tyrant revealed or dethroned."]
["CharismaCG","Unicorn","Crowns","Charisma","CG","is a card that generously offers that which the subject seeks, just as the charger in the picture offers up its fruit.","Misaligned, the card means betrayal, poisoning, or a false friend."]
["StrengthCN","Uprising","Hammers","Strength","CN","represents being caught in the clutches of something much more powerful than you. It is an overwhelming strength that often crushes what comes in contact with it. The crown held high signifies an overthrowing of a leader of some sort. In the spread, it indicates a force much stronger than the person receiving the reading."]
["IntelligenceCN","Vision","Books","Intelligence","CN","represents arcane knowledge. Such knowledge can take the form of madness or cryptic words. This card often means an encounter with a crazy person, but it can also signify a brush with genius."]
["IntelligenceNG","Wanderer","Books","Intelligence","NG","is a collector. This centaur appreciates that which others regard as junk or trash. The Wanderer appears to those clever enough to find the true worth in something others ignore or treat as worthless.","Misaligned, The Wanderer signifies a loss of values, or the inability to see what is truly valuable in a person or situation."]
["ConstitutionCE","Waxworks","Shields","Constitution","CE","is a place of helplessness and physical entropy. The mind might be willing, but the flesh is frozen in this place of horror. It is also the card of torture and imprisonment, signifying literal inability to move or a paralysis of a more prosaic kind.","Misaligned, this card indicates an abundance of energy at a crucial moment that changes all."]
["WisdomLG","Winged Serpent","Stars","Wisdom","LG","is a powerful being. Knowledge and prudence are separate keeps bridged by understanding. The couatl represents this bridge, knowing whether now is the time to strike.","Misaligned, this card means either not seizing a moment or doing so ill-advisedly."]

{"sheet":"Data","index":13,"n_rows":10,"n_cols":4,"rows_kept":10,"cut":false,"hidden":true,"merged":[]}
["Alignments","Abilities","Abbrev","Check"]
["LG","Strength",{"$f":"LEFT(B2,3)","v":"Str"},"Attack roll"]
["NG","Dexterity",{"$f":"LEFT(B3,3)","v":"Dex"},"Refl save"]
["CG","Constitution","Con","Fort save"]
["LN","Intelligence","Int","Skill check"]
["N","Wisdom","Wis","Will save"]
["CN","Charisma","Cha","Any d20 roll"]
["LE"]
["NE"]
["CE"]

{"sheet":"Draw","index":14,"n_rows":55,"n_cols":31,"rows_kept":55,"cut":false,"hidden":true,"merged":[]}
["Shuffle","Card",null,"Attr","Index","Lookup","Card",null,"Draw","Rank","Card",null,"Seed",null,"Adj Rank","Card","Draw","Rank","Card",null,"Draw Path","Reversed","Card","RevAutoSrc",null,"Attribute (Spell)","N","Valid Cards","Attribute (Tapestry)","N","Valid Cards"]
[{"$f":"RAND()","v":0.34213891603132696},{"$f":"Cards!B2","v":"Avalanche"},null,"Charisma",{"$f":"MOD((ROW()-2),9)+1","v":1},{"$f":"D2&\"-\"&E2","v":"Charisma-1"},"Betrayal",null,1,{"$f":"LARGE(A2:A55,I2)","v":0.98491571079199247},{"$f":"VLOOKUP(J2,A2:B55,2,FALSE)","v":"Bear"},null,0.58961182034533133,null,{"$f":"A2+IF(P2='Cross (autodraw)'!$G$9,1,0)","v":0.34213891603132696},{"$f":"B2","v":"Avalanche"},1,{"$f":"LARGE(O2:O55,ROW()-1)","v":0.98491571079199247},{"$f":"VLOOKUP(R2,O2:P55,2,FALSE)","v":"Bear"},null,1,1,"Mute Hag",{"$f":"RANDBETWEEN(0,1)","v":0},null,{"$f":"'Harrow Spell (U-fill)'!B12","v":0},1,{"$f":"IFERROR(VLOOKUP($Z$2&\"-\"&AA2,cardattrindex,2,FALSE),\"\")","v":""},{"$f":"'Tapestry (U-fill)'!B7","v":0},1,{"$f":"IFERROR(VLOOKUP($AC$2&\"-\"&AD2,cardattrindex,2,FALSE),\"\")","v":""}]
[0.98491571079199247,{"$f":"Cards!B3","v":"Bear"},null,"Charisma",2,"Charisma-2","Courtesan",null,2,0.97819907091516445,"Joke",null,null,null,{"$f":"A3+IF(P3='Cross (autodraw)'!$G$9,1,0)","v":0.98491571079199247},"Bear",2,0.97819907091516445,"Joke",null,2,1,"Lost",1,null,null,2,{"$f":"IFERROR(VLOOKUP($Z$2&\"-\"&AA3,cardattrindex,2,FALSE),\"\")","v":""},null,2,{"$f":"IFERROR(VLOOKUP($AC$2&\"-\"&AD3,cardattrindex,2,FALSE),\"\")","v":""}]
[3.1464596709415149E-3,{"$f":"Cards!B4","v":"Beating"},null,"Charisma",3,"Charisma-3","Empty Throne",null,3,0.85494908661799207,"Desert",null,null,null,{"$f":"A4+IF(P4='Cross (autodraw)'!$G$9,1,0)","v":3.1464596709415149E-3},"Beating",3,0.85494908661799207,"Desert",null,3,0,"Snakebite",0,null,null,3,{"$f":"IFERROR(VLOOKUP($Z$2&\"-\"&AA4,cardattrindex,2,FALSE),\"\")","v":""},null,3,{"$f":"IFERROR(VLOOKUP($AC$2&\"-\"&AD4,cardattrindex,2,FALSE),\"\")","v":""}]
[0.82502577333457294,{"$f":"Cards!B5","v":"Betrayal"},null,"Charisma",4,"Charisma-4","Liar",null,4,0.82502577333457294,"Betrayal",null,null,null,{"$f":"A5+IF(P5='Cross (autodraw)'!$G$9,1,0)","v":0.82502577333457294},"Betrayal",4,0.82502577333457294,"Betrayal",null,4,1,"Desert",1,null,null,4,{"$f":"IFERROR(VLOOKUP($Z$2&\"-\"&AA5,cardattrindex,2,FALSE),\"\")","v":""},null,4,{"$f":"IFERROR(VLOOKUP($AC$2&\"-\"&AD5,cardattrindex,2,FALSE),\"\")","v":""}]
[0.17146462736284418,{"$f":"Cards!B6","v":"Big Sky"},null,"Charisma",5,"Charisma-5","Marriage",null,5,0.78370794869608074,"Eclipse",null,null,null,{"$f":"A6+IF(P6='Cross (autodraw)'!$G$9,1,0)","v":0.17146462736284418},"Big Sky",5,0.78370794869608074,"Eclipse",null,5,1,"Eclipse",1,null,null,5,{"$f":"IFERROR(VLOOKUP($Z$2&\"-\"&AA6,cardattrindex,2,FALSE),\"\")","v":""},null,5,{"$f":"IFERROR(VLOOKUP($AC$2&\"-\"&AD6,cardattrindex,2,FALSE),\"\")","v":""}]
[0.74619899782492893,{"$f":"Cards!B7","v":"Brass Dwarf"},null,"Charisma",6,"Charisma-6","Theater",null,6,0.76787458962319044,"Mute Hag",null,null,null,{"$f":"A7+IF(P7='Cross (autodraw)'!$G$9,1,0)","v":0.74619899782492893},"Brass Dwarf",null,null,null,null,6,0,"Carnival",0,null,null,6,{"$f":"IFERROR(VLOOKUP($Z$2&\"-\"&AA7,cardattrindex,2,FALSE),\"\")","v":""},null,6,{"$f":"IFERROR(VLOOKUP($AC$2&\"-\"&AD7,cardattrindex,2,FALSE),\"\")","v":""}]
[0.88695138096205495,{"$f":"Cards!B8","v":"Carnival"},null,"Charisma",7,"Charisma-7","Twin",null,7,0.76528969144517467,"Trumpet",null,null,null,{"$f":"A8+IF(P8='Cross (autodraw)'!$G$9,1,0)","v":0.88695138096205495},"Carnival",null,null,null,null,7,0,"Wanderer",1,null,null,7,{"$f":"IFERROR(VLOOKUP($Z$2&\"-\"&AA8,cardattrindex,2,FALSE),\"\")","v":""},null,7,{"$f":"IFERROR(VLOOKUP($AC$2&\"-\"&AD8,cardattrindex,2,FALSE),\"\")","v":""}]
[0.23737374569933911,{"$f":"Cards!B9","v":"Courtesan"},null,"Charisma",8,"Charisma-8","Tyrant",null,8,0.7605812332910119,"Idiot",null,null,null,{"$f":"A9+IF(P9='Cross (autodraw)'!$G$9,1,0)","v":0.23737374569933911},"Courtesan",null,null,null,null,8,0,"Publican",0,null,null,8,{"$f":"IFERROR(VLOOKUP($Z$2&\"-\"&AA9,cardattrindex,2,FALSE),\"\")","v":""},null,8,{"$f":"IFERROR(VLOOKUP($AC$2&\"-\"&AD9,cardattrindex,2,FALSE),\"\")","v":""}]
[0.50944232062961048,{"$f":"Cards!B10","v":"Cricket"},null,"Charisma",9,"Charisma-9","Unicorn",null,9,0.74026996047627547,"Juggler",null,null,null,{"$f":"A10+IF(P10='Cross (autodraw)'!$G$9,1,0)","v":0.50944232062961048},"Cricket",null,null,null,null,9,1,"Theater",1,null,null,9,{"$f":"IFERROR(VLOOKUP($Z$2&\"-\"&AA10,cardattrindex,2,FALSE),\"\")","v":""},null,9,{"$f":"IFERROR(VLOOKUP($AC$2&\"-\"&AD10,cardattrindex,2,FALSE),\"\")","v":""}]
[0.45034664361606747,{"$f":"Cards!B11","v":"Crows"},null,"Constitution",1,"Constitution-1","Brass Dwarf",null,10,0.72616357729259151,"Rakshasa",null,null,null,{"$f":"A11+IF(P11='Cross (autodraw)'!$G$9,1,0)","v":0.45034664361606747},"Crows",null,null,null,null,10,0,"Survivor",1]
[3.7803923421952046E-2,{"$f":"Cards!B12","v":"Cyclone"},null,"Constitution",2,"Constitution-2","Desert",null,null,null,null,null,null,null,{"$f":"A12+IF(P12='Cross (autodraw)'!$G$9,1,0)","v":3.7803923421952046E-2},"Cyclone"]
[0.13496977438678881,{"$f":"Cards!B13","v":"Dance"},null,"Constitution",3,"Constitution-3","Mountain Man",null,null,null,null,null,null,null,{"$f":"A13+IF(P13='Cross (autodraw)'!$G$9,1,0)","v":0.13496977438678881},"Dance"]
[0.30222440458434663,{"$f":"Cards!B14","v":"Demon's Lantern"},null,"Constitution",4,"Constitution-4","Sickness",null,null,null,null,null,null,null,{"$f":"A14+IF(P14='Cross (autodraw)'!$G$9,1,0)","v":0.30222440458434663},"Demon's Lantern"]
[0.85494908661799207,{"$f":"Cards!B15","v":"Desert"},null,"Constitution",5,"Constitution-5","Survivor",null,null,null,null,null,null,null,{"$f":"A15+IF(P15='Cross (autodraw)'!$G$9,1,0)","v":0.85494908661799207},"Desert"]
[0.78370794869608074,{"$f":"Cards!B16","v":"Eclipse"},null,"Constitution",6,"Constitution-6","Tangled Briar",null,null,null,null,null,null,null,{"$f":"A16+IF(P16='Cross (autodraw)'!$G$9,1,0)","v":0.78370794869608074},"Eclipse"]
[0.36153105147280706,{"$f":"Cards!B17","v":"Empty Throne"},null,"Constitution",null,"Constitution-","Teamster",null,null,null,null,null,null,null,{"$f":"A17+IF(P17='Cross (autodraw)'!$G$9,1,0)","v":0.36153105147280706},"Empty Throne"]
[0.53575288612982019,{"$f":"Cards!B18","v":"Fiend"},null,"Constitution",{"$f":"MOD((ROW()-2),9)+1","v":8},"Constitution-8","Trumpet",null,null,null,null,null,null,null,{"$f":"A18+IF(P18='Cross (autodraw)'!$G$9,1,0)","v":0.53575288612982019},"Fiend"]
[0.21365295952388752,{"$f":"Cards!B19","v":"Foreign Trader"},null,"Constitution",9,"Constitution-9","Waxworks",null,null,null,null,null,null,null,{"$f":"A19+IF(P19='Cross (autodraw)'!$G$9,1,0)","v":0.21365295952388752},"Foreign Trader"]
[0.28328643668087972,{"$f":"Cards!B20","v":"Forge"},null,"Dexterity",1,"Dexterity-1","Avalanche",null,null,null,null,null,null,null,{"$f":"A20+IF(P20='Cross (autodraw)'!$G$9,1,0)","v":0.28328643668087972},"Forge"]
[0.43710802766379186,{"$f":"Cards!B21","v":"Hidden Truth"},null,"Dexterity",2,"Dexterity-2","Cricket",null,null,null,null,null,null,null,{"$f":"A21+IF(P21='Cross (autodraw)'!$G$9,1,0)","v":0.43710802766379186},"Hidden Truth"]
[0.7605812332910119,{"$f":"Cards!B22","v":"Idiot"},null,"Dexterity",3,"Dexterity-3","Crows",null,null,null,null,null,null,null,{"$f":"A22+IF(P22='Cross (autodraw)'!$G$9,1,0)","v":0.7605812332910119},"Idiot"]
[2.1244071694457745E-2,{"$f":"Cards!B23","v":"Inquisitor"},null,"Dexterity",4,"Dexterity-4","Dance",null,null,null,null,null,null,null,{"$f":"A23+IF(P23='Cross (autodraw)'!$G$9,1,0)","v":2.1244071694457745E-2},"Inquisitor"]
[0.97819907091516445,{"$f":"Cards!B24","v":"Joke"},null,"Dexterity",5,"Dexterity-5","Demon's Lantern",null,null,null,null,null,null,null,{"$f":"A24+IF(P24='Cross (autodraw)'!$G$9,1,0)","v":0.97819907091516445},"Joke"]
[0.74026996047627547,{"$f":"Cards!B25","v":"Juggler"},null,"Dexterity",6,"Dexterity-6","Juggler",null,null,null,null,null,null,null,{"$f":"A25+IF(P25='Cross (autodraw)'!$G$9,1,0)","v":0.74026996047627547},"Juggler"]
[0.68552694939206016,{"$f":"Cards!B26","v":"Keep"},null,"Dexterity",7,"Dexterity-7","Locksmith",null,null,null,null,null,null,null,{"$f":"A26+IF(P26='Cross (autodraw)'!$G$9,1,0)","v":0.68552694939206016},"Keep"]
[0.3527628841205066,{"$f":"Cards!B27","v":"Liar"},null,"Dexterity",8,"Dexterity-8","Peacock",null,null,null,null,null,null,null,{"$f":"A27+IF(P27='Cross (autodraw)'!$G$9,1,0)","v":0.3527628841205066},"Liar"]
[0.34324032894465706,{"$f":"Cards!B28","v":"Locksmith"},null,"Dexterity",9,"Dexterity-9","Rabbit Prince",null,null,null,null,null,null,null,{"$f":"A28+IF(P28='Cross (autodraw)'!$G$9,1,0)","v":0.34324032894465706},"Locksmith"]
[0.43187268303014958,{"$f":"Cards!B29","v":"Lost"},null,"Intelligence",1,"Intelligence-1","Foreign Trader",null,null,null,null,null,null,null,{"$f":"A29+IF(P29='Cross (autodraw)'!$G$9,1,0)","v":0.43187268303014958},"Lost"]
[0.61492778017720939,{"$f":"Cards!B30","v":"Marriage"},null,"Intelligence",2,"Intelligence-2","Hidden Truth",null,null,null,null,null,null,null,{"$f":"A30+IF(P30='Cross (autodraw)'!$G$9,1,0)","v":0.61492778017720939},"Marriage"]
[2.8757831468927408E-2,{"$f":"Cards!B31","v":"Midwife"},null,"Intelligence",3,"Intelligence-3","Idiot",null,null,null,null,null,null,null,{"$f":"A31+IF(P31='Cross (autodraw)'!$G$9,1,0)","v":2.8757831468927408E-2},"Midwife"]
[0.60000133637556929,{"$f":"Cards!B32","v":"Mountain Man"},null,"Intelligence",4,"Intelligence-4","Inquisitor",null,null,null,null,null,null,null,{"$f":"A32+IF(P32='Cross (autodraw)'!$G$9,1,0)","v":0.60000133637556929},"Mountain Man"]
[0.76787458962319044,{"$f":"Cards!B33","v":"Mute Hag"},null,"Intelligence",5,"Intelligence-5","Joke",null,null,null,null,null,null,null,{"$f":"A33+IF(P33='Cross (autodraw)'!$G$9,1,0)","v":0.76787458962319044},"Mute Hag"]
[0.39929360385478085,{"$f":"Cards!B34","v":"Owl"},null,"Intelligence",6,"Intelligence-6","Rakshasa",null,null,null,null,null,null,null,{"$f":"A34+IF(P34='Cross (autodraw)'!$G$9,1,0)","v":0.39929360385478085},"Owl"]
[7.6276512628301596E-3,{"$f":"Cards!B35","v":"Paladin"},null,"Intelligence",7,"Intelligence-7","Snakebite",null,null,null,null,null,null,null,{"$f":"A35+IF(P35='Cross (autodraw)'!$G$9,1,0)","v":7.6276512628301596E-3},"Paladin"]
[0.41308882249551482,{"$f":"Cards!B36","v":"Peacock"},null,"Intelligence",8,"Intelligence-8","Vision",null,null,null,null,null,null,null,{"$f":"A36+IF(P36='Cross (autodraw)'!$G$9,1,0)","v":0.41308882249551482},"Peacock"]
[0.64339097831790781,{"$f":"Cards!B37","v":"Publican"},null,"Intelligence",9,"Intelligence-9","Wanderer",null,null,null,null,null,null,null,{"$f":"A37+IF(P37='Cross (autodraw)'!$G$9,1,0)","v":0.64339097831790781},"Publican"]
[1.0430568769116744E-2,{"$f":"Cards!B38","v":"Queen Mother"},null,"Strength",1,"Strength-1","Bear",null,null,null,null,null,null,null,{"$f":"A38+IF(P38='Cross (autodraw)'!$G$9,1,0)","v":1.0430568769116744E-2},"Queen Mother"]
[0.8011837756381186,{"$f":"Cards!B39","v":"Rabbit Prince"},null,"Strength",2,"Strength-2","Beating",null,null,null,null,null,null,null,{"$f":"A39+IF(P39='Cross (autodraw)'!$G$9,1,0)","v":0.8011837756381186},"Rabbit Prince"]
[0.72616357729259151,{"$f":"Cards!B40","v":"Rakshasa"},null,"Strength",3,"Strength-3","Big Sky",null,null,null,null,null,null,null,{"$f":"A40+IF(P40='Cross (autodraw)'!$G$9,1,0)","v":0.72616357729259151},"Rakshasa"]
[5.0948100284303299E-2,{"$f":"Cards!B41","v":"Sickness"},null,"Strength",4,"Strength-4","Cyclone",null,null,null,null,null,null,null,{"$f":"A41+IF(P41='Cross (autodraw)'!$G$9,1,0)","v":5.0948100284303299E-2},"Sickness"]
[0.13075599562527562,{"$f":"Cards!B42","v":"Snakebite"},null,"Strength",5,"Strength-5","Fiend",null,null,null,null,null,null,null,{"$f":"A42+IF(P42='Cross (autodraw)'!$G$9,1,0)","v":0.13075599562527562},"Snakebite"]
[0.2718293661045551,{"$f":"Cards!B43","v":"Survivor"},null,"Strength",6,"Strength-6","Forge",null,null,null,null,null,null,null,{"$f":"A43+IF(P43='Cross (autodraw)'!$G$9,1,0)","v":0.2718293661045551},"Survivor"]
[0.12539341641104385,{"$f":"Cards!B44","v":"Tangled Briar"},null,"Strength",7,"Strength-7","Keep",null,null,null,null,null,null,null,{"$f":"A44+IF(P44='Cross (autodraw)'!$G$9,1,0)","v":0.12539341641104385},"Tangled Briar"]
[4.8623168179256382E-2,{"$f":"Cards!B45","v":"Teamster"},null,"Strength",8,"Strength-8","Paladin",null,null,null,null,null,null,null,{"$f":"A45+IF(P45='Cross (autodraw)'!$G$9,1,0)","v":4.8623168179256382E-2},"Teamster"]
[0.31597879623970515,{"$f":"Cards!B46","v":"Theater"},null,"Strength",9,"Strength-9","Uprising",null,null,null,null,null,null,null,{"$f":"A46+IF(P46='Cross (autodraw)'!$G$9,1,0)","v":0.31597879623970515},"Theater"]
[0.76528969144517467,{"$f":"Cards!B47","v":"Trumpet"},null,"Wisdom",1,"Wisdom-1","Carnival",null,null,null,null,null,null,null,{"$f":"A47+IF(P47='Cross (autodraw)'!$G$9,1,0)","v":0.76528969144517467},"Trumpet"]
[0.47426802651350264,{"$f":"Cards!B48","v":"Twin"},null,"Wisdom",2,"Wisdom-2","Eclipse",null,null,null,null,null,null,null,{"$f":"A48+IF(P48='Cross (autodraw)'!$G$9,1,0)","v":0.47426802651350264},"Twin"]
[0.29988354941797568,{"$f":"Cards!B49","v":"Tyrant"},null,"Wisdom",3,"Wisdom-3","Lost",null,null,null,null,null,null,null,{"$f":"A49+IF(P49='Cross (autodraw)'!$G$9,1,0)","v":0.29988354941797568},"Tyrant"]
[0.61063670920157775,{"$f":"Cards!B50","v":"Unicorn"},null,"Wisdom",4,"Wisdom-4","Midwife",null,null,null,null,null,null,null,{"$f":"A50+IF(P50='Cross (autodraw)'!$G$9,1,0)","v":0.61063670920157775},"Unicorn"]
[0.29388209946285337,{"$f":"Cards!B51","v":"Uprising"},null,"Wisdom",5,"Wisdom-5","Mute Hag",null,null,null,null,null,null,null,{"$f":"A51+IF(P51='Cross (autodraw)'!$G$9,1,0)","v":0.29388209946285337},"Uprising"]
[0.51374648097341102,{"$f":"Cards!B52","v":"Vision"},null,"Wisdom",6,"Wisdom-6","Owl",null,null,null,null,null,null,null,{"$f":"A52+IF(P52='Cross (autodraw)'!$G$9,1,0)","v":0.51374648097341102},"Vision"]
[0.48471316958810917,{"$f":"Cards!B53","v":"Wanderer"},null,"Wisdom",7,"Wisdom-7","Publican",null,null,null,null,null,null,null,{"$f":"A53+IF(P53='Cross (autodraw)'!$G$9,1,0)","v":0.48471316958810917},"Wanderer"]
[0.62078061810011698,{"$f":"Cards!B54","v":"Waxworks"},null,"Wisdom",8,"Wisdom-8","Queen Mother",null,null,null,null,null,null,null,{"$f":"A54+IF(P54='Cross (autodraw)'!$G$9,1,0)","v":0.62078061810011698},"Waxworks"]
[0.76209201450628417,{"$f":"Cards!B55","v":"Winged Serpent"},null,"Wisdom",9,"Wisdom-9","Winged Serpent",null,null,null,null,null,null,null,{"$f":"A55+IF(P55='Cross (autodraw)'!$G$9,1,0)","v":0.76209201450628417},"Winged Serpent"]